Cogmind - Beta 12 @@@ ROGUE MODE // 2023.04.01 @ 01:41:17 Player: Cracklepappy Result: Destroyed by G-73 Enforcer with Heavy Laser Performance ------------- Evolutions (9) 4500 Regions Visited (33) 6600 Robots Destroyed (864) 4320 Value Destroyed (42846) 42846 Prototype IDs (85) 1700 Alien Tech Used (3) 600 Bonus (28736) 28736 TOTAL SCORE: 89302 Bonus ------- Triggered High Security 1000 High Alert Combat Kills 20588 Follower Combat Kills 2026 Entered Garrisons 600 Network Hubs Disabled 200 Met Data Miner 300 Met Zhirov 300 Met Warlord at Base 500 MAIN.C Attacked Warlord 500 Warlord Defense Kills 464 A7 Reached Mainframe 300 Met R17 at Cetus 500 Met Warlord at Research 2000 Scanned by Researcher 500 Friendly Fire -1042 Cogmind --------- Core Integrity 0/1600 Matter 296/300 Energy 100/100 System Corruption 18% Temperature Cool (18) Movement Core (50) Location -1/Access Parts ------- > --- POWER (3) -------- (None) > --- PROPULSION (6) --- (None) > --- UTILITY (13) ----- (None) > --- WEAPON (3) ------- (None) > --- INVENTORY (5) ---- Advanced Coolant Injector Advanced System Shield Nova Cannon Molecular Deconstructor Peak State ------------ > --- POWER ------------ Light Quantum Reactor Light Quantum Reactor Light Quantum Reactor > --- PROPULSION ------- Myomer Leg Myomer Leg Myomer Leg Enhanced Biometal Leg Centrium Leg Centrium Leg > --- UTILITY ---------- Advanced Heat Sink Advanced Heat Sink Advanced Coolant Injector Advanced Coolant Injector Experimental Coolant Injector Huge Storage Unit Advanced Target Analyzer Experimental Reaction Control System Medium Regenerative Plating SHELL Armor Advanced Shield Generator > --- WEAPON ----------- Compact Mass Driver Perforator > --- INVENTORY -------- Particle Reactor Light Quantum Reactor Advanced Heat Sink Advanced Energy Well Advanced Energy Well YI-UF0's Bottomless Matter Pit Advanced Terrain Scan Processor Graphene Brace Advanced Shield Generator Antimissile System Advanced System Shield Long-range Tractor Beam Compact HERF Cannon Nova Cannon Nova Cannon Nova Cannon Nova Cannon Enhanced Nova Cannon Helical Railgun Hypervelocity Multirail Hardcell Cannon Linear Accelerator Molecular Deconstructor Portable AFG [Rating: 223] Favorites ----------- Power Light Quantum Reactor Engine Reinforced Ion Engine Power Core Light Nuclear Core Reactor Light Quantum Reactor Propulsion Light Treads Treads Light Treads Leg Myomer Leg Wheel Armored Huge Wheel Hover Unit Cooled Antigrav System Utility Huge Storage Unit Device Advanced Cooling System Storage Huge Storage Unit Processor Advanced Targeting Computer Hackware Improved Hacking Suite Protection Centrium Medium Armor Plating Weapon Enhanced Autogun Energy Gun Spread Laser Energy Cannon Compact HERF Cannon Ballistic Gun Enhanced Autogun Ballistic Cannon Linear Accelerator Launcher Rocket Launcher Special Weapon Molecular Deconstructor Impact Weapon Hammer Build | -11 -10 -10 -9 -9 -8 -8 -7 -7 -7 -7 -6 -6 -6 -6 -6 -6 -6 -5 -5 -5 -5 -4 -4 -4 -4 -4 -3 -3 -3 -2 -1 -1 -1 ------- Run | Jun Mat Min Mat Min Mat Gar Fac Low Low Dat Pro Fac Ext Cet Arc Hub Gar Fac Upp Upp War Pro Fac Upp Upp Zhi Pro Res Tes Res Acc Gar Acc Slots Evolved 18 | . . . 2 . 2 . 2 . . . . 2 . . . . . 2 . . . . 2 . . . . 2 . 2 2 . . Power 2 | . . . . . . . . . . . . 1 . . . . . . . . . . . . . . . 1 . . . . . Propulsion 4 | . . . 1 . 1 . . . . . . . . . . . . 1 . . . . 1 . . . . . . . . . . Utility 11 | . . . 1 . 1 . 2 . . . . 1 . . . . . . . . . . 1 . . . . 1 . 2 2 . . Weapon 1 | . . . . . . . . . . . . . . . . . . 1 . . . . . . . . . . . . . . . Parts Attached 703 | 6 18 18 60 7 20 20 55 4 1 . 2 35 36 15 14 7 23 39 . 11 34 4 26 6 6 7 7 9 49 90 2 47 25 Power 68 | 1 . 3 3 1 2 . 3 . 1 . 1 5 3 1 4 . 3 1 . . 1 . 3 . 2 . . 4 3 13 . 8 2 Engine 16 | 1 . 2 3 1 2 . 3 . 1 . 1 1 . . . . 1 . . . . . . . . . . . . . . . . Core 5 | . . 1 . . . . . . . . . 2 1 . . . . . . . . . . . 1 . . . . . . . . Reactor 47 | . . . . . . . . . . . . 2 2 1 4 . 2 1 . . 1 . 3 . 1 . . 4 3 13 . 8 2 Propulsion 105 | 2 1 4 10 1 11 5 7 . . . . 6 4 1 . 1 4 5 . . 2 . 4 1 1 1 . . 4 17 . 12 1 Treads 73 | 1 1 3 9 1 11 5 5 . . . . 5 2 1 . 1 4 5 . . 1 . 4 1 1 1 . . 4 7 . . . Leg 23 | . . . . . . . . . . . . . . . . . . . . . . . . . . . . . . 10 . 12 1 Wheel 8 | 1 . 1 1 . . . 2 . . . . 1 2 . . . . . . . . . . . . . . . . . . . . Hover 1 | . . . . . . . . . . . . . . . . . . . . . 1 . . . . . . . . . . . . Flight . | . . . . . . . . . . . . . . . . . . . . . . . . . . . . . . . . . . Utility 273 | 1 6 2 11 3 3 5 19 3 . . 1 5 15 5 10 5 9 25 . 2 18 4 15 4 2 2 4 3 21 37 2 18 13 Device 138 | . 3 . 1 . 1 2 11 1 . . . 2 7 . 4 2 3 9 . 1 13 2 10 3 1 1 3 1 12 25 2 7 11 Storage 15 | 1 3 . . 1 . . 1 . . . . . . . 1 . . 2 . . . . . . . . . 1 . 1 . 4 . Processor 12 | . . . . . . . . . . . . . 1 . 1 . 1 . . . 2 . 1 . . . . . 3 2 . 1 . Hackware 9 | . . . . . . 2 1 . . . . 1 . . . 1 . . . . . 1 1 . . . . 1 1 . . . . Protection 99 | . . 2 10 2 2 1 6 2 . . 1 2 7 5 4 2 5 14 . 1 3 1 3 1 1 1 1 . 5 9 . 6 2 Artifact . | . . . . . . . . . . . . . . . . . . . . . . . . . . . . . . . . . . Weapon 257 | 2 11 9 36 2 4 10 26 1 . . . 19 14 8 . 1 7 8 . 9 13 . 4 1 1 4 3 2 21 23 . 9 9 Energy Gun 21 | . 5 5 5 1 1 . 2 . . . . . . . . . . . . 1 1 . . . . . . . . . . . . Energy Cannon 11 | . . . 1 . . 1 2 . . . . 1 . 2 . . . 1 . . . . . . . . . . 3 . . . . Ballistic Gun 128 | 2 5 4 21 1 3 6 13 1 . . . 10 8 4 . 1 2 4 . 6 6 . 2 1 1 2 . 1 6 8 . 5 5 Ballistic Cannon 50 | . . . . . . . 2 . . . . 3 1 . . . 3 2 . 1 6 . 1 . . 1 2 1 9 10 . 4 4 Launcher 32 | . . . 9 . . 1 3 . . . . . 5 1 . . 2 1 . 1 . . 1 . . . 1 . 2 5 . . . Special Weapon 2 | . . . . . . . . . . . . . . . . . . . . . . . . . . 1 . . 1 . . . . Impact Weapon 13 | . 1 . . . . 2 4 . . . . 5 . 1 . . . . . . . . . . . . . . . . . . . Slashing Weapon . | . . . . . . . . . . . . . . . . . . . . . . . . . . . . . . . . . . Piercing Weapon . | . . . . . . . . . . . . . . . . . . . . . . . . . . . . . . . . . . Special Melee Weapon . | . . . . . . . . . . . . . . . . . . . . . . . . . . . . . . . . . . Unidentified Prototypes 51 | . . . 2 2 3 . 4 . . . . 5 . 3 2 . . 1 . . 11 2 . . . 2 . . 8 5 . 1 . Corrupted Parts 8 | . . 2 . . . . . . . . . . . 3 . . 2 . . . . . . . . . . . . 1 . . . System Corruption 27 | . . 5 . . . . . . . . . . . 15 . . 6 . . . . . . . . . . . . 1 . . . Parts Lost 132 | . . 4 7 . 1 1 10 . 1 . 3 3 17 1 . . 7 1 . . . . 3 1 1 . 2 7 2 21 . 10 29 Power 24 | . . 1 1 . 1 . 1 . 1 . 1 . . . . . 2 . . . . . 1 . . . . 2 . 6 . 3 4 Propulsion 23 | . . 2 2 . . 1 3 . . . . 1 3 . . . . . . . . . . . . . . . 1 6 . 1 3 Utility 64 | . . 1 3 . . . 5 . . . 2 . 12 1 . . 3 1 . . . . 2 1 . . 1 5 1 6 . 4 16 Weapon 20 | . . . 1 . . . 1 . . . . 2 2 . . . 2 . . . . . . . 1 . 1 . . 3 . 2 5 Highest Loss Streak 26 | . . 2 5 . 1 1 3 . 1 . 2 2 11 1 . . 7 1 . . . . 3 1 1 . 2 3 1 4 . 3 26 To Critical Strikes 2 | . . . . . . . . . . . . . . . . . . . . . . . . . . . . . . 1 . . 1 Average Slot Usage (%) 86 | . 100 99 99 91 89 89 89 83 83 84 77 86 88 89 85 85 84 87 82 81 72 76 75 83 84 68 80 75 72 77 83 89 82 Engine 4 | . 14 8 10 11 9 9 6 7 6 7 6 9 . . . . 2 . . . . . . . . . . . . . . . . Reactor 5 | . . . . . . . . . . . . . 11 11 12 13 9 11 11 11 7 5 6 10 10 10 10 12 14 12 12 11 9 Treads 18 | . 25 27 30 33 36 35 20 15 15 15 15 12 12 11 6 6 13 16 17 17 17 17 14 15 15 15 15 14 13 13 . . . Leg 1 | . . . . . . . . . . . . . . . . . . . . . . . . . . . . . . 3 24 23 21 Wheel 1 | . 2 . 1 . . . 4 7 7 7 7 6 5 6 6 5 . . . . . . . . . . . . . . . . . Device 12 | . 14 12 3 . 3 7 21 16 15 15 15 19 11 11 8 6 12 12 17 17 15 16 14 16 21 22 25 22 14 12 15 15 10 Storage 7 | . 14 14 11 11 9 9 7 7 7 7 7 6 6 6 6 6 6 5 5 5 5 5 5 5 5 5 5 4 4 4 4 4 3 Processor 2 | . . . . . . . . . . . . . . . . 6 6 4 . . 2 5 6 8 5 5 5 1 3 7 4 6 7 Hackware 1 | . . . . . . 1 3 1 . . . 3 3 . . 3 6 4 . . . . 3 . . . . 3 . . . . . Protection 11 | . . 1 18 14 13 9 6 11 15 15 8 11 20 26 29 22 12 10 11 10 8 5 6 9 10 8 4 2 8 12 16 15 18 Energy Gun 1 | . 11 4 5 . . . . . . . . . . . . . . . . . 1 . . . . . . . . . . . . Ballistic Gun 11 | . 15 23 14 21 17 17 14 14 15 15 15 11 9 10 13 13 7 10 11 10 5 5 8 10 13 . 4 1 1 4 . 6 5 Ballistic Cannon 2 | . . . . . . . . . . . . 1 2 . . . 4 4 5 4 3 11 6 5 1 . 7 9 7 5 8 4 6 Naked Turns 40 | . . . . . . . . . . . . . . . . . . . . . . . . . . . . . . . . . 40 Heaviest Build 236 | 14 92 96 110 116 123 119 128 132 132 127 127 134 138 159 159 152 162 184 178 178 193 179 180 173 173 166 186 202 228 235 201 232 236 Greatest Support 240 | 20 40 40 60 60 89 83 96 28 28 28 28 28 69 37 28 160 160 175 167 167 167 167 240 240 240 240 240 240 240 215 168 168 160 Greatest Overweight (x) 11 | 1 3 9 9 1 1 1 4 4 4 4 4 5 11 5 5 5 2 1 1 1 1 1 1 . . . . . 1 3 1 1 1 Average Overweight (x) 1 | . 1 2 3 1 1 1 2 4 4 4 3 4 3 3 4 4 . . 1 1 . 1 . . . . . . . 1 1 . . Largest Inventory Capacity 25 | 8 25 25 25 25 25 25 25 25 25 25 25 25 25 25 25 25 25 25 25 25 25 25 25 25 25 25 25 25 25 25 25 25 25 Average Capacity 24 | 7 19 25 25 25 25 25 25 25 25 25 25 25 25 25 25 25 25 25 25 25 25 25 25 25 25 25 25 25 25 25 25 25 23 Most Carried 25 | 8 25 25 25 25 25 25 25 25 25 25 25 25 25 25 25 25 25 25 25 25 25 25 25 25 25 25 25 25 25 25 25 25 25 Average Carried 24 | 5 18 24 24 24 24 24 24 24 24 25 23 24 24 24 24 24 24 24 24 24 24 24 24 24 24 24 23 24 24 24 25 24 22 Final Capacity 25 | 8 25 25 25 25 25 25 25 25 25 25 25 25 25 25 25 25 25 25 25 25 25 25 25 25 25 25 25 25 25 25 25 25 5 Final Carried 25 | 8 25 25 25 25 25 25 25 25 25 25 23 25 25 25 25 25 25 25 25 25 25 25 25 25 25 24 23 25 23 25 25 25 5 Class Distribution -------------------- 35% | Scavenger-Mutant 33% | Mutant 14% | Scavenger-Tank 7% | Scavenger-Gunner 3% | Tank Dominant Class ---------------- Mutant | -10/Materials Mutant | -10/Mines Mutant | -9/Materials Scavenger-Mutant | -9/Mines Mutant | -8/Materials Scavenger-Mutant | -8/Garrison Mutant | -7/Factory Mutant | -7/Lower Caves Mutant | -7/Lower Caves Mutant | -7/Data Miner Mutant | -6/Proximity Caves Mutant | -6/Factory Mutant | -6/Extension Scavenger-Mutant | -6/Cetus Scavenger-Mutant | -6/Archives Scavenger-Mutant | -6/Hub_04(d) Scavenger-Mutant | -6/Garrison Scavenger-Tank | -5/Factory Scavenger-Tank | -5/Upper Caves Scavenger-Tank | -5/Upper Caves Scavenger-Mutant | -5/Warlord Tank | -4/Proximity Caves Hacker-Tank | -4/Factory Scavenger-Tank | -4/Upper Caves Scavenger-Tank | -4/Upper Caves Scavenger-Mutant | -4/Zhirov Scavenger-Mutant | -3/Proximity Caves Scavenger-Tank | -3/Research Scavenger-Mutant | -3/Testing Scavenger-Gunner | -2/Research Scavenger-Mutant | -1/Access Scavenger-Mutant | -1/Garrison Scavenger-Mutant | -1/Access Resources | -11 -10 -10 -9 -9 -8 -8 -7 -7 -7 -7 -6 -6 -6 -6 -6 -6 -6 -5 -5 -5 -5 -4 -4 -4 -4 -4 -3 -3 -3 -2 -1 -1 -1 ----------- Run | Jun Mat Min Mat Min Mat Gar Fac Low Low Dat Pro Fac Ext Cet Arc Hub Gar Fac Upp Upp War Pro Fac Upp Upp Zhi Pro Res Tes Res Acc Gar Acc Matter Collected 47200 | 318 786 144 1508 485 1989 916 3591 490 348 . 323 1575 1672 360 696 695 739 2204 316 624 1491 529 3014 699 1295 161 642 1741 3544 10364 . 2191 1750 Remotely 10820 | . . . . . . . . . . . . 283 . . . . . 442 . . 230 . 843 . . . . . 1631 5857 . 330 1204 Salvage Created 45274 | 132 897 155 2097 242 1823 816 3601 272 155 . 336 1161 907 279 499 1050 1036 1696 47 360 244 604 2915 366 1018 . 185 1140 2570 6923 . 3002 8746 Parts 1821 | 8 63 6 148 9 96 44 162 15 5 . 14 41 39 18 32 57 46 79 . 26 8 20 144 22 43 . 13 54 121 210 . 136 142 Haulers Intercepted 25 | . 2 . 5 . 5 . 7 . . . . 2 . . . . . 1 . . . . 1 . . . . . . . . . 2 Recyclers Shooed 31 | 2 . . 2 . 2 . 2 . . . . 1 3 . . . . 3 1 . . . 4 . . . . . 1 . . . 10 Parts Field Recycled . | . . . . . . . . . . . . . . . . . . . . . . . . . . . . . . . . . . Retrieved Matter . | . . . . . . . . . . . . . . . . . . . . . . . . . . . . . . . . . . Parts Self-Destructed 145 | . . . . . . . . 12 5 . 14 . . . . . . . . 24 . 20 . 16 43 . 11 . . . . . . Prevented . | . . . . . . . . . . . . . . . . . . . . . . . . . . . . . . . . . . Kills | -11 -10 -10 -9 -9 -8 -8 -7 -7 -7 -7 -6 -6 -6 -6 -6 -6 -6 -5 -5 -5 -5 -4 -4 -4 -4 -4 -3 -3 -3 -2 -1 -1 -1 ------- Run | Jun Mat Min Mat Min Mat Gar Fac Low Low Dat Pro Fac Ext Cet Arc Hub Gar Fac Upp Upp War Pro Fac Upp Upp Zhi Pro Res Tes Res Acc Gar Acc Combat Hostiles Destroyed 713 | . 21 4 55 3 28 19 62 7 3 . 6 19 17 4 3 16 22 28 1 10 4 11 39 9 15 . 9 23 43 99 . 42 91 Melee 4 | . . . . . . . . . . . . . . . . . 1 . . . . . . . . . . . . . . . 3 Guns 416 | . 21 4 35 3 28 13 55 7 3 . 6 14 5 . 3 16 14 16 . 6 3 5 21 6 13 . 4 . 5 14 . 22 74 Cannons 218 | . . . . . . . . . . . . 5 3 . . . 4 8 1 1 1 6 16 3 2 . 1 23 32 78 . 20 14 AOE 74 | . . . 20 . . 6 7 . . . . . 9 3 . . 3 4 . 3 . . 2 . . . 4 . 6 7 . . . Classes Destroyed 27 | 2 6 1 5 . 1 1 4 . . . . . . . . . . . . . . . 1 1 . . 1 . 1 3 . . . Worker 37 | . 2 . 2 . 3 . 3 . . . . . 1 . . . . 4 . . . . 9 . . . . 1 2 . . . 10 Builder 39 | . 1 . 2 . . . 2 . . . . . . . . 2 . 2 . . . . 12 . . . . 2 4 . . . 12 Tunneler 5 | 3 1 . . . . . 1 . . . . . . . . . . . . . . . . . . . . . . . . . . Hauler 25 | . 2 . 5 . 5 . 7 . . . . 2 . . . . . 1 . . . . 1 . . . . . . . . . 2 Recycler 31 | 1 1 . 3 . 3 . 3 . . . . . 4 . . . . . . . . . 5 . . . . . 2 . . . 9 Carrier 4 | . . . . . . . . . . . . . . . . . . . . . . . . . . . . . . 2 . . 2 Mechanic 12 | . . . 1 . . . 2 . . . . . . . . . . . . . . . . . . . . . . 3 . . 6 Operator 12 | . . . 2 . . . 1 . . . . . . . 8 . . . . . . . . . . . . 1 . . . . . Drone 2 | . . . . . . . . . . . . . . . . . . . . . . . . . . . 2 . . . . . . Watcher 24 | . 3 . 4 . 2 . 3 . . . . 1 1 1 . . . 1 . . . . 1 . . . . 1 1 1 . . 4 Swarmer 104 | . 6 . 12 . 3 4 3 4 . . . 3 7 . . . 7 5 . 5 . 2 5 5 1 . 4 . . 5 . 5 18 Saboteur 6 | . . . . . . . . . . . . . . . . . . . . . . . 1 . . . . . 1 . . . 4 Grunt 323 | . 15 2 25 3 15 12 36 1 2 . 4 9 4 3 . 8 13 14 . . 3 8 11 . 11 . . 10 24 32 . 21 37 Brawler 22 | . . . 3 . . . 3 . . . 1 . . . . . . . . . . . 1 . . . . . 1 6 . 1 6 Duelist 23 | . . . 5 . 1 . 1 . 1 . 1 1 . . . . . . . . . . . . 1 . . 1 . 5 . 2 4 Protector 10 | . . . 4 . . . . . . . . . . . . . . . . . . . . . 1 . . . 1 2 . . 2 Researcher 2 | . . . . . . . . . . . . . . . . . . . . . . . . . . . . . 2 . . . . Sentry 62 | . . 2 6 . 8 2 4 1 . . . 3 4 . 3 4 1 . . . . 1 7 1 1 . . 1 . 12 . 1 . Demolisher 7 | . . . . . . . 1 . . . . . . . . . . . . . . . . . . . . . . 6 . . . Specialist 6 | . . . . . . . 2 . . . . . . . . . . . . . 1 . . . . . . 3 . . . . . Hunter 50 | . . . . . 1 . 2 1 . . . 1 1 . . . . 2 . 5 . . 6 . . . 2 2 4 12 . 2 9 Programmer 66 | . . . . . . . 9 . . . . 2 . . . 4 . 6 . . . . 8 . . . 1 5 12 4 . 9 6 Heavy 3 | . . . . . . . 1 . . . . . . . . . . 1 . . . . . . . . . 1 . . . . . Behemoth 6 | . . . . . . 1 . . . . . . 1 . . . 1 . 1 . . . . 1 . . . . . . . 1 . Cetus Guard 1 | . . . . . . . . . . . . . . 1 . . . . . . . . . . . . . . . . . . . Investigator 1 | . . . . . . . . . . . . . . . . . . . . . . . . . . . . . . . . . 1 Striker 13 | . . . . . . . . . . . . . . . . . . . . . . . . . . . . . . 9 . . 4 Executioner 7 | . . . . . . . . . . . . . . . . . . . . . . . . . . . . . . 6 . . 1 Thug 1 | . . . . . . . . . . . . . . . . . . . . . . . . 1 . . . . . . . . . Mutant 1 | . . . . . . . . . . . . . . . . . . . . . . . . 1 . . . . . . . . . Best Kill Streak 91 | 2 5 2 10 3 4 6 13 4 3 . 3 6 6 3 3 3 5 8 1 5 4 5 13 5 6 . 4 8 14 13 . 8 91 Combat Bots Only 56 | . 3 2 9 3 4 6 8 4 3 . 3 6 4 3 1 3 5 6 1 5 4 5 5 5 6 . 4 7 7 12 . 8 56 Max Kills in Single Turn 5 | 1 2 1 3 1 2 3 4 2 1 . 1 1 3 3 1 1 3 4 1 3 2 1 3 2 2 . 2 2 5 4 . 2 5 Gunslinging 1 | . . . . . . . . 1 . . . . . . . . . . . . . . . . 1 . . . . . . . . Exploded 4 | . . . 3 . . 3 2 . . . . . 3 3 . . 3 4 . 3 . . 2 . . . 2 . 2 1 . . . Melee 1 | . . . . . . . . . . . . . . . . . 1 . . . . . . . . . . . . . . . 1 Uniques/NPCs Destroyed 1 | . . . . 1 . . . . . . . . . . . . . . . . . . . . . . . . . . . . . YI-UF0 (-9/Mines) Combat | -11 -10 -10 -9 -9 -8 -8 -7 -7 -7 -7 -6 -6 -6 -6 -6 -6 -6 -5 -5 -5 -5 -4 -4 -4 -4 -4 -3 -3 -3 -2 -1 -1 -1 -------- Run | Jun Mat Min Mat Min Mat Gar Fac Low Low Dat Pro Fac Ext Cet Arc Hub Gar Fac Upp Upp War Pro Fac Upp Upp Zhi Pro Res Tes Res Acc Gar Acc Damage Taken 56534 | . 518 397 1881 87 1409 763 4193 409 314 . 578 1580 2818 196 480 1314 2852 2240 215 250 256 506 3331 507 1185 . 772 1769 1915 11045 . 4431 8323 Core 4693 | . 114 125 196 . 98 42 514 . 49 . 40 123 318 . 28 45 175 124 16 9 12 76 156 29 48 . 61 125 85 485 . 142 1458 Absorbed by Shields 20123 | . . . . . . . 444 . . . . 814 249 107 . 265 551 1939 198 266 244 537 2639 368 536 . 385 1280 2012 4979 . 1290 1020 Reduced by Siege Mode 934 | . . . . . . . . . . . . . . . . . 159 102 13 . . . 186 64 110 . 108 50 32 110 . . . Redirected to Shielding 243 | . . . . . . . . . . . . 137 53 5 . . . . . . . . . . . . . . . 42 . 6 . Regen/Repaired (Parts) 12673 | . . . . . 255 . . . . . . . 343 . . . . 1498 . . 394 . 956 . . . . . 843 4879 20 2149 1336 Core Remaining (%) 55 | 100 . 4 . 51 . 74 . . . . 13 . . . . . 18 . . . . 76 . . . . 74 . 83 61 . . . Volleys Fired 2372 | 19 64 14 143 14 136 69 299 19 13 . 36 136 87 18 84 57 59 100 17 35 23 26 135 31 33 . 21 91 121 226 . 98 148 Largest 3 | 2 2 2 2 2 2 2 2 2 2 . 2 2 2 2 2 2 2 3 3 3 3 3 3 3 3 . 3 3 3 3 . 3 3 Hottest 258 | 40 130 130 130 46 50 80 90 53 53 . 53 90 82 69 65 65 88 123 110 110 121 157 171 136 136 . 140 170 258 170 . 169 202 Shots Fired 4642 | 38 122 25 267 28 272 123 590 40 26 . 72 267 163 21 106 117 110 258 40 61 31 76 352 72 99 . 54 162 250 426 . 152 222 Gun 3278 | 38 122 25 244 28 272 117 579 40 26 . 72 224 122 8 106 117 77 158 22 41 12 25 181 42 92 . 32 28 55 175 . 65 133 Cannon 1274 | . . . . . . 2 2 . . . . 43 31 12 . . 32 99 18 19 19 51 169 30 7 . 20 134 174 236 . 87 89 Launcher 73 | . . . 23 . . 4 9 . . . . . 10 1 . . 1 1 . 1 . . 2 . . . 2 . 4 15 . . . Special 17 | . . . . . . . . . . . . . . . . . . . . . . . . . . . . . 17 . . . . Kinetic 4409 | 38 92 14 180 28 272 117 579 40 26 . 72 263 153 8 106 117 109 257 40 46 29 76 350 72 99 . 52 162 227 411 . 152 222 Thermal 129 | . 30 11 64 . . 2 2 . . . . 4 . . . . . . . 14 2 . . . . . . . . . . . . Explosive 73 | . . . 23 . . 4 9 . . . . . 10 1 . . 1 1 . 1 . . 2 . . . 2 . 4 15 . . . Electromagnetic 14 | . . . . . . . . . . . . . . 12 . . . . . . . . . . . . . . 2 . . . . Robot Hit Streak 32 | 5 8 15 23 19 21 15 15 10 8 . 12 15 28 10 20 12 32 17 15 10 9 12 24 25 28 . 25 20 19 24 . 14 17 Robot Miss Streak 11 | 4 6 4 7 1 3 2 8 2 5 . 3 4 6 2 4 3 3 3 2 2 2 3 5 2 3 . 4 5 3 11 . 8 9 Penetration Max 4 | . . . . . . . . . . . . . 1 . 1 1 1 1 . 1 1 . 2 1 2 . . 2 1 3 . 1 4 Secondary Targets 22 | . 1 . 2 1 1 2 9 3 1 . . . . . . 1 . . . . . . . . 1 . . . . . . . . Max Gunslinging Chain 1 | . 1 . 1 1 1 1 1 1 1 . . . . . . 1 . . . . . . . . 1 . . . . . . . . Shots Hit Robots 3059 | 20 83 17 192 26 190 84 387 31 18 . 51 181 110 16 68 77 86 163 25 19 8 45 223 48 69 . 37 85 148 290 . 105 157 Core Hits 1965 | 4 62 16 175 8 70 43 176 14 7 . 18 57 61 15 26 34 43 72 5 17 4 26 125 18 35 . 12 40 97 354 . 111 220 Critical Kills 267 | . . . . . . 1 . 1 1 . . 1 . . 3 6 2 9 . 4 . 4 3 2 1 . . . 16 62 . 38 113 Critical Parts Destroyed 349 | . 2 . 1 . . 1 2 . . . . . . 1 6 8 2 30 . 1 1 2 2 1 2 . . . 31 94 . 43 119 Critical Strikes 734 | . 2 . 1 . . 2 2 1 1 . . 4 5 2 11 14 6 42 3 7 1 9 13 3 3 . 1 5 56 210 . 84 246 Destroy 666 | . 2 . 1 . . 2 2 1 1 . . 1 . 1 11 14 6 39 3 5 1 7 5 3 3 . . . 47 189 . 84 238 Blast 67 | . . . . . . . . . . . . 3 5 . . . . 3 . 2 . 2 8 . . . 1 5 9 21 . . 8 Corrupt 1 | . . . . . . . . . . . . . . 1 . . . . . . . . . . . . . . . . . . . Melee Attacks 25 | . 5 . . . . 2 5 . . . . 8 . 5 . . . . . . . . . . . . . . . . . . . Impact 25 | . 5 . . . . 2 5 . . . . 8 . 5 . . . . . . . . . . . . . . . . . . . Slashing . | . . . . . . . . . . . . . . . . . . . . . . . . . . . . . . . . . . Piercing . | . . . . . . . . . . . . . . . . . . . . . . . . . . . . . . . . . . Sneak Attacks . | . . . . . . . . . . . . . . . . . . . . . . . . . . . . . . . . . . Combat Hostiles . | . . . . . . . . . . . . . . . . . . . . . . . . . . . . . . . . . . Follow-up Attacks . | . . . . . . . . . . . . . . . . . . . . . . . . . . . . . . . . . . Damage Inflicted 92117 | 241 1138 288 4724 395 3170 1666 8610 528 357 . 976 3522 4257 647 1836 2149 2528 4750 596 536 250 1319 8804 1313 2042 . 1580 4578 6922 14248 . 2848 5299 Guns 47697 | 241 1125 272 2619 385 3138 1372 6756 528 357 . 976 2799 1537 124 1836 2137 1611 2466 291 169 202 573 4400 856 1792 . 572 378 1175 3152 . 1006 2852 Cannons 30314 | . . . . . . . . . . . . 659 723 297 . . 696 1769 305 159 48 746 3978 457 250 . 428 4164 4118 7340 . 1842 2335 Explosions 13649 | . . . 2105 . . 294 1841 . . . . . 1922 226 . . 209 492 . 208 . . 387 . . . 580 . 1629 3756 . . . Melee . | . . . . . . . . . . . . . . . . . . . . . . . . . . . . . . . . . . Ramming 457 | . 13 16 . 10 32 . 13 . . . . 64 75 . . 12 12 23 . . . . 39 . . . . 36 . . . . 112 Kinetic 76554 | 241 862 145 1923 385 3138 1372 6756 528 357 . 976 3458 2260 124 1836 2137 2307 4235 596 328 250 1319 8378 1313 2042 . 1000 4542 5219 10492 . 2848 5187 Thermal 1222 | . 263 127 696 . . . 136 . . . . . . . . . . . . . . . . . . . . . . . . . . Explosive 13513 | . . . 2105 . . 294 1705 . . . . . 1922 226 . . 209 492 . 208 . . 387 . . . 580 . 1629 3756 . . . Electromagnetic 371 | . . . . . . . . . . . . . . 297 . . . . . . . . . . . . . . 74 . . . . Impact . | . . . . . . . . . . . . . . . . . . . . . . . . . . . . . . . . . . Slashing . | . . . . . . . . . . . . . . . . . . . . . . . . . . . . . . . . . . Piercing . | . . . . . . . . . . . . . . . . . . . . . . . . . . . . . . . . . . Highest Corruption 32 | . . 5 . . . . 9 9 . . 1 6 8 23 23 20 26 8 8 8 4 . 9 9 9 9 9 12 32 6 . 8 18 Average Corruption 8 | . . 4 . . . . 4 8 . . 1 4 7 17 19 14 23 3 8 5 4 . 5 9 9 9 9 4 22 3 . 6 10 Corruption Purged 24 | . . . . . . . . 9 . . . . . . 11 . . . . 4 . . . . . . . . . . . . . Corruption Blocked 39 | . . . . . . . . . . . . . . . . . . . . . . . . . . . . . . 39 . . . Effects 805 | . . 1 . . . . 59 16 . . 1 25 71 17 53 67 46 18 25 31 2 . 45 40 26 9 16 10 71 68 . 64 24 Message Errors 192 | . . 1 . . . . 12 2 . . . 8 16 2 14 19 15 3 6 7 . . 11 6 11 5 2 2 13 17 . 16 4 Matter Fused 176 | . . . . . . . 14 6 . . . 6 18 3 12 12 6 5 2 7 . . 5 9 4 3 4 2 12 16 . 21 9 Heat Flow Errors 81 | . . . . . . . 7 1 . . . 2 10 1 2 8 2 2 2 5 2 . 7 3 1 . 1 2 7 9 . 4 3 Energy Discharges 106 | . . . . . . . 12 4 . . . 2 12 3 6 7 6 4 2 7 . . 2 6 1 1 3 1 7 7 . 10 3 Parts Rejected 9 | . . . . . . . 2 . . . . . . . . . . . . . . . . 1 1 . . . 3 1 . 1 . Parts Fused 14 | . . . . . . . . . . . 1 . 2 . 1 1 . . 2 . . . 3 . 2 . . . 1 1 . . . Data Loss (minor) 90 | . . . . . . . 3 . . . . 1 5 4 6 6 8 3 5 3 . . 6 10 1 . 2 1 12 6 . 7 1 Data Loss (major) 49 | . . . . . . . 1 1 . . . 1 2 2 5 7 3 1 1 2 . . 3 2 1 . 2 . 6 4 . 4 1 Misfires 34 | . . . . . . . 3 2 . . . 1 2 . . 5 1 . 3 . . . 3 1 3 . 1 . 4 4 . 1 . Alerts 16 | . . . . . . . 3 . . . . 2 1 . 1 . 2 . 2 . . . 1 . . . . 1 1 2 . . . Misdirections 2 | . . . . . . . . . . . . . . . 1 1 . . . . . . . . . . . . . . . . . Weapon Failures 36 | . . . . . . . 2 . . . . 2 3 2 5 1 3 . . . . . 4 2 1 . 1 1 5 1 . . 3 Overload Shots . | . . . . . . . . . . . . . . . . . . . . . . . . . . . . . . . . . . Overflow Damage 1621 | . . . 3 . . . 75 . . . . 21 60 . . . 15 199 . . . 62 123 6 . . 173 265 340 267 . . 12 Projectiles 1242 | . . . . . . . . . . . . 19 3 . . . 15 82 . . . 62 118 6 . . 116 265 319 225 . . 12 Explosions 358 | . . . 3 . . . 75 . . . . . 38 . . . . 117 . . . . 5 . . . 57 . 21 42 . . . Melee 21 | . . . . . . . . . . . . 2 19 . . . . . . . . . . . . . . . . . . . . Knockbacks 284 | . . . . 1 1 . . . . . . 6 4 . . . 4 19 . 3 1 12 32 . 1 . 6 18 40 98 . 20 18 Impact 4 | . . . . 1 1 . . . . . . 1 1 . . . . . . . . . . . . . . . . . . . . Kinetic 255 | . . . . . . . . . . . . 5 3 . . . 4 16 . 3 1 11 29 . 1 . 6 16 37 89 . 20 14 Secondary 25 | . . . . . . . . . . . . . . . . . . 3 . . . 1 3 . . . . 2 3 9 . . 4 Self-Inflicted Damage 507 | . . . 190 . . 24 43 . . . . 31 37 . . . . . . . . . . . . . . . . 120 . . 62 Shots 13 | . . . 5 . . 1 4 . . . . . . . . . . . . . . . . . . . . . . 2 . . 1 Rammed 24 | . 2 1 . 1 4 . 2 . . . . 4 2 . . 2 . 2 . . . . 2 . . . . 1 . . . . 1 Targets Rammed 33 | . 2 1 . 1 6 . 2 . . . . 4 2 . . 2 1 2 . . . . 2 . . . . 2 . . . . 6 Kicked 5 | . . . . . . . . . . . . . . . . . . . . . . . . . . . . . . . . . 5 Crushed 4 | . . . . . 2 . . . . . . . . . . . 1 . . . . . . . . . . 1 . . . . . Highest Temperature 480 | . 162 233 312 174 480 83 246 87 19 . . 298 219 163 153 245 210 248 99 224 248 219 257 231 210 . 82 179 451 199 . 170 198 Average Temperature 81 | . 58 105 53 63 98 25 64 44 5 . . 34 58 91 31 63 64 37 27 52 44 88 65 87 90 . 42 28 126 97 . 45 64 Received Heat Transfer 9197 | . 207 198 585 48 612 351 991 63 162 . 252 382 658 41 90 463 963 306 24 . 8 146 318 83 296 . . 154 174 558 . 247 817 Effects 20 | . . . 2 . 10 . . . . . . . . . . . . . . . . . 1 . . . . . 7 . . . . Shutdowns 4 | . . . . . 3 . . . . . . . . . . . . . . . . . . . . . . . 1 . . . . Energy Bleed 7 | . . . 2 . 1 . . . . . . . . . . . . . . . . . 1 . . . . . 3 . . . . Interference 3 | . . . . . 2 . . . . . . . . . . . . . . . . . . . . . . . 1 . . . . Matter Decay 3 | . . . . . 3 . . . . . . . . . . . . . . . . . . . . . . . . . . . . Short Circuit 1 | . . . . . . . . . . . . . . . . . . . . . . . . . . . . . 1 . . . . Damage (minor) 2 | . . . . . 1 . . . . . . . . . . . . . . . . . . . . . . . 1 . . . . Siege Activations 24 | . . . . . . . . . . . . . . . . . 3 3 1 1 . . 5 1 1 . 1 2 2 4 . . . Total Turns 594 | . . . . . . . . . . . . . . . . . 88 110 19 2 . . 125 24 21 . 36 23 45 101 . . . Longest Duration 74 | . . . . . . . . . . . . . . . . . 39 74 19 2 . . 48 24 21 . 36 14 29 38 . . . Robots Corrupted 1 | . . . . . . . . . . . . . . 1 . . . . . . . . . . . . . . . . . . . Combat Hostiles 1 | . . . . . . . . . . . . . . 1 . . . . . . . . . . . . . . . . . . . Parts Fried 9 | . . 1 . . . . . . . . . . 1 1 . . . . . . . . . . . . . 4 . . . . 2 Impact Corruptions 6 | . . . . . . . . . . . . 1 1 . . . . . . . . . 1 . . . . 1 . 2 . . . Robots Melted . | . . . . . . . . . . . . . . . . . . . . . . . . . . . . . . . . . . Combat Hostiles . | . . . . . . . . . . . . . . . . . . . . . . . . . . . . . . . . . . Parts Melted 13 | . . . . . . . . . . . . . . . . . . 1 . . . 2 1 . 1 . 1 1 1 4 . 1 . Heat Transferred 1508 | . 403 155 850 . . . 100 . . . . . . . . . . . . . . . . . . . . . . . . . . Parts Sabotaged 9 | . . . . . . . . . . . . . . . . . . . . . . . . . . . . . . 1 . . 8 Parts Stolen . | . . . . . . . . . . . . . . . . . . . . . . . . . . . . . . . . . . Parts Stripped . | . . . . . . . . . . . . . . . . . . . . . . . . . . . . . . . . . . Power Chain Reactions . | . . . . . . . . . . . . . . . . . . . . . . . . . . . . . . . . . . Missiles Intercepted 15 | . . . . . . . . . . . . . . . . . . . . . . . . . . . . . . 15 . . . Alert | -11 -10 -10 -9 -9 -8 -8 -7 -7 -7 -7 -6 -6 -6 -6 -6 -6 -6 -5 -5 -5 -5 -4 -4 -4 -4 -4 -3 -3 -3 -2 -1 -1 -1 ------- Run | Jun Mat Min Mat Min Mat Gar Fac Low Low Dat Pro Fac Ext Cet Arc Hub Gar Fac Upp Upp War Pro Fac Upp Upp Zhi Pro Res Tes Res Acc Gar Acc Peak Influence 4818 | 20 321 110 1174 450 219 768 1225 . . . . 605 533 973 569 323 681 868 . . . . 1341 . . . . 667 1444 3444 2075 3351 4818 Initial 2075 | . 13 34 9 450 . 103 403 . . . . 450 219 298 389 76 175 357 . . . . . . . . . 150 344 727 2075 1671 2010 Average 632 | 7 184 18 634 107 107 436 695 . . . . 413 210 646 401 191 486 431 . . . . 444 . . . . 464 691 1058 2075 2617 3233 Maximum Alert Level 5 | . 1 . 4 2 1 3 4 . . . . 2 2 3 2 1 2 3 . . . . 4 . . . . 2 4 5 5 5 5 Low Security (%) 30 | 100 54 100 23 75 93 18 . . . . . . 49 . . 43 8 . . . . . 51 . . . . 7 . . . . . Level 1 18 | . 45 . 6 12 6 22 3 . . . . 53 39 11 60 56 18 61 . . . . 6 . . . . 27 8 . . . . Level 2 21 | . . . 14 12 . 41 44 . . . . 46 11 54 39 . 72 26 . . . . 10 . . . . 64 63 24 . . . Level 3 15 | . . . 47 . . 17 45 . . . . . . 34 . . . 12 . . . . 11 . . . . . 15 45 . . . Level 4 4 | . . . 9 . . . 6 . . . . . . . . . . . . . . . 19 . . . . . 13 16 . . . Level 5 6 | . . . . . . . . . . . . . . . . . . . . . . . . . . . . . . . 100 100 16 High Security 2 | . . . . . . . . . . . . . . . . . . . . . . . . . . . . . . 13 . . 83 Max Security . | . . . . . . . . . . . . . . . . . . . . . . . . . . . . . . . . . . Sterilizations 1 | . . . 1 . . . . . . . . . . . . . . . . . . . . . . . . . . . . . . Squads Dispatched 141 | . 5 . 10 1 4 . 25 . . . . 8 3 . . 13 . 11 . . . . 18 . 1 . . 6 10 1 . . 25 Investigation 17 | . 3 . 2 1 . . 1 . . . . 1 1 . . 3 . 2 . . . . 3 . . . . . . . . . . Extermination 29 | . . . . . . . 9 . . . . 2 . . . 4 . 4 . . . . 4 . . . . 2 4 . . . . Reinforcement 39 | . 2 . 2 . 2 . 7 . . . . 4 2 . . 3 . 5 . . . . 2 . . . . 2 4 1 . . 3 Assault 42 | . . . 6 . . . 2 . . . . 1 . . . . . . . . . . 6 . 1 . . 2 2 . . . 22 Garrison 14 | . . . . . 2 . 6 . . . . . . . . 3 . . . . . . 3 . . . . . . . . . . Intercept . | . . . . . . . . . . . . . . . . . . . . . . . . . . . . . . . . . . Searches Triggered 1 | . . . . . . . . . . . . 1 . . . . . . . . . . . . . . . . . . . . . Data Miner Redirects 12 | . . . . . . . . . . . . . 1 . . 1 . 1 . . . . 7 . . . . 2 . . . . . Construction Impeded 13 | . . . 1 . . . 1 . . . . . 2 . . 1 . 1 . . . . 1 . . . . . 3 . . . 3 Haulers Reinforced 7 | . . . . . . . 3 . . . . 2 . . . . . 1 . . . . 1 . . . . . . . . . . Active Scanning Responses . | . . . . . . . . . . . . . . . . . . . . . . . . . . . . . . . . . . Cargo Convoy Interrupts 1 | . . . . . . . 1 . . . . . . . . . . . . . . . . . . . . . . . . . . Stealth | -11 -10 -10 -9 -9 -8 -8 -7 -7 -7 -7 -6 -6 -6 -6 -6 -6 -6 -5 -5 -5 -5 -4 -4 -4 -4 -4 -3 -3 -3 -2 -1 -1 -1 --------- Run | Jun Mat Min Mat Min Mat Gar Fac Low Low Dat Pro Fac Ext Cet Arc Hub Gar Fac Upp Upp War Pro Fac Upp Upp Zhi Pro Res Tes Res Acc Gar Acc Distress Signals 44 | . 2 . 4 . 1 . 3 . . . 1 1 7 2 . 1 . . . . 5 . 2 . . . . 2 2 5 . . 6 Communications Jammed 99 | . . . . . . . 11 . . . . . . . . . . . . . . . 37 . 7 . 2 42 . . . . . Distress Signals 90 | . . . . . . . 11 . . . . . . . . . . . . . . . 36 . 7 . . 36 . . . . . Times Spotted 1096 | . 27 7 85 3 37 20 89 8 3 . 8 29 42 20 29 32 23 39 1 10 49 11 52 9 18 . 9 32 59 151 . 37 157 Peak Tracking Total 25 | . 4 2 10 2 4 7 7 4 3 . 5 5 6 5 1 6 6 6 1 5 14 5 8 2 6 . 4 7 7 20 . 6 25 Tactical Retreats 61 | . . 2 3 . 3 2 5 1 . . . . 2 1 . 3 . 3 . . . . 5 1 . . . 6 4 14 . 1 5 Traps | -11 -10 -10 -9 -9 -8 -8 -7 -7 -7 -7 -6 -6 -6 -6 -6 -6 -6 -5 -5 -5 -5 -4 -4 -4 -4 -4 -3 -3 -3 -2 -1 -1 -1 ------- Run | Jun Mat Min Mat Min Mat Gar Fac Low Low Dat Pro Fac Ext Cet Arc Hub Gar Fac Upp Upp War Pro Fac Upp Upp Zhi Pro Res Tes Res Acc Gar Acc Traps Triggered 45 | . 1 . 1 . . 5 2 . . . . 2 6 . . . 2 7 . . . . 3 . . . . . 1 . . 15 . Indirectly . | . . . . . . . . . . . . . . . . . . . . . . . . . . . . . . . . . . Trap Hack Attempts . | . . . . . . . . . . . . . . . . . . . . . . . . . . . . . . . . . . Triggered . | . . . . . . . . . . . . . . . . . . . . . . . . . . . . . . . . . . Disarmed . | . . . . . . . . . . . . . . . . . . . . . . . . . . . . . . . . . . Reprogrammed . | . . . . . . . . . . . . . . . . . . . . . . . . . . . . . . . . . . Reused 2 | . . 2 . . . . . . . . . . . . . . . . . . . . . . . . . . . . . . . Traps Extracted . | . . . . . . . . . . . . . . . . . . . . . . . . . . . . . . . . . . Installed 4 | . . 4 . . . . . . . . . . . . . . . . . . . . . . . . . . . . . . . Triggered 17 | . . 2 . . . . 2 1 . . . . . . . . . . . . 11 1 . . . . . . . . . . . Most Traps Carried 2 | . . 2 . . . . . . . . . . . . . . . . . . . . . . . . . . . . . . . Machines | -11 -10 -10 -9 -9 -8 -8 -7 -7 -7 -7 -6 -6 -6 -6 -6 -6 -6 -5 -5 -5 -5 -4 -4 -4 -4 -4 -3 -3 -3 -2 -1 -1 -1 ---------- Run | Jun Mat Min Mat Min Mat Gar Fac Low Low Dat Pro Fac Ext Cet Arc Hub Gar Fac Upp Upp War Pro Fac Upp Upp Zhi Pro Res Tes Res Acc Gar Acc Machines Disabled 76 | . . . 4 . 1 2 3 . . . . 3 4 3 5 5 3 5 . . . 1 10 1 1 . . . 15 4 . 5 1 Max in Single Turn 2 | . . . 1 . 1 1 2 . . . . 1 1 . 1 1 1 1 . . . 1 1 1 1 . . . 1 1 . 1 1 Garrison Access 6 | . . . . . . . . . . . . . . . . . . 1 . . . . 1 . . . . . 1 3 . . . Garrison Relay 6 | . . . . . . 2 . . . . . . . . . . 1 . . . . . . . . . . . . . . 3 . Network Hub 1 | . . . . . . . . . . . . . . . . 1 . . . . . . . . . . . . . . . . . Energy Cycler 2 | . . . . . . . . . . . . . 1 . . . . . . . . . . . . . . . . . . . 1 Machines Repaired . | . . . . . . . . . . . . . . . . . . . . . . . . . . . . . . . . . . Machines Sabotaged . | . . . . . . . . . . . . . . . . . . . . . . . . . . . . . . . . . . Overloaded Fab Kills . | . . . . . . . . . . . . . . . . . . . . . . . . . . . . . . . . . . Hacking | -11 -10 -10 -9 -9 -8 -8 -7 -7 -7 -7 -6 -6 -6 -6 -6 -6 -6 -5 -5 -5 -5 -4 -4 -4 -4 -4 -3 -3 -3 -2 -1 -1 -1 --------- Run | Jun Mat Min Mat Min Mat Gar Fac Low Low Dat Pro Fac Ext Cet Arc Hub Gar Fac Upp Upp War Pro Fac Upp Upp Zhi Pro Res Tes Res Acc Gar Acc Machines Accessed 110 | . 7 2 12 1 11 1 13 1 . 4 . 5 9 1 . 6 . 8 . 2 . 1 10 . . 7 . 3 2 1 1 2 . Terminals 57 | . 5 1 8 . 7 1 8 . . . . 3 7 1 . 5 . 2 . . . . 3 . . . . 3 1 . . 2 . Fabricators 7 | . . . . . . . 2 . . . . 1 . . . . . 1 . . . . 3 . . . . . . . . . . Repair Stations 6 | . . . . . 1 . 1 . . . . . 1 . . . . 1 . . . . 2 . . . . . . . . . . Recycling Units 9 | . 2 . 2 . 2 . 1 . . . . 1 1 . . . . . . . . . . . . . . . . . . . . Scanalyzers 7 | . . . 2 . . . 1 . . . . . . . . . . 3 . . . . . . . . . . 1 . . . . Garrison Access 7 | . . . . . 1 . . . . . . . . . . 1 . 1 . . . . 2 . . . . . . 1 1 . . Total Hacks 362 | . 20 3 38 1 24 2 35 1 . 32 . 10 26 1 . 13 . 32 . 2 . 1 43 . . 46 . 13 7 4 2 6 . Successful 197 | . 10 1 21 1 13 2 13 1 . 32 . 4 10 . . 1 . 17 . 2 . 1 14 . . 46 . 3 3 . 1 1 . Failed 165 | . 10 2 17 . 11 . 22 . . . . 6 16 1 . 12 . 15 . . . . 29 . . . . 10 4 4 1 5 . Catastrophic 51 | . 3 . 3 . 4 . 6 . . . . 4 6 1 . 3 . 2 . . . . 15 . . . . 2 1 . . 1 . Database Lockouts . | . . . . . . . . . . . . . . . . . . . . . . . . . . . . . . . . . . Manual 81 | . 13 . 21 . 9 1 9 . . . . 3 7 1 . . . 2 . . 1 . 7 . 2 . . . 5 . . . . Terminals 158 | . 16 2 26 . 15 2 20 . . . . 8 18 1 . 10 . 3 . . . . 13 . . . . 13 5 . . 6 . Fabricators 16 | . . . . . . . 5 . . . . 1 . . . . . 2 . . . . 8 . . . . . . . . . . Repair Stations 37 | . . . . . 3 . 4 . . . . . 7 . . . . 9 . . . . 14 . . . . . . . . . . Recycling Units 20 | . 4 . 6 . 5 . 3 . . . . 1 1 . . . . . . . . . . . . . . . . . . . . Scanalyzers 27 | . . . 6 . . . 3 . . . . . . . . . . 16 . . . . . . . . . . 2 . . . . Garrison Access 20 | . . . . . 1 . . . . . . . . . . 3 . 2 . . . . 8 . . . . . . 4 2 . . Terminal Hacks 133 | . 6 1 11 1 7 2 8 1 . 32 . 3 4 . . . . 1 . 2 . 1 2 . . 46 . 3 1 . . 1 . Record 47 | . . . . . . . . 1 . 11 . . . . . . . . . . . 1 . . . 34 . . . . . . . Part Schematic 23 | . 2 . 7 . . . . . . 10 . . . . . . . . . . . . . . . 4 . . . . . . . Robot Schematic 8 | . . . . . . . . . . 8 . . . . . . . . . . . . . . . . . . . . . . . Robot Analysis 5 | . . . . . 1 . . . . . . . . . . . . . . . . . . . . 4 . . . . . . . Prototype ID Bank 12 | . 1 . 1 . 1 . 1 . . 3 . . . . . . . . . . . . . . . 4 . 1 . . . . . Open Door 5 | . . 1 . 1 . . . . . . . 1 . . . . . . . 2 . . . . . . . . . . . . . Branch Access Points 7 | . . . 1 . 1 . 1 . . . . 1 . . . . . 1 . . . . 1 . . . . 1 . . . . . Emergency Access Points 2 | . . . . . . 1 . . . . . . . . . . . . . . . . . . . . . . . . . 1 . Terminal Index 1 | . . . . . . . . . . . . . . . . . . . . . . . 1 . . . . . . . . . . Unreport Threat 7 | . . . . . 2 . 3 . . . . . 1 . . . . . . . . . . . . . . . 1 . . . . Locate Traps 4 | . 2 . . . . . 1 . . . . . 1 . . . . . . . . . . . . . . . . . . . . Hauler Manifests 6 | . 1 . 1 . 1 . 2 . . . . . 1 . . . . . . . . . . . . . . . . . . . . Registered Prototypes 1 | . . . . . . . . . . . . . . . . . . . . . . . . . . . . 1 . . . . . Zone Layout 4 | . . . 1 . 1 . . . . . . 1 1 . . . . . . . . . . . . . . . . . . . . Garrison Registry 1 | . . . . . . 1 . . . . . . . . . . . . . . . . . . . . . . . . . . . Fabricator Hacks 6 | . . . . . . . 1 . . . . . . . . . . 2 . . . . 3 . . . . . . . . . . Load Schematic 3 | . . . . . . . . . . . . . . . . . . 1 . . . . 2 . . . . . . . . . . Build 3 | . . . . . . . 1 . . . . . . . . . . 1 . . . . 1 . . . . . . . . . . Repair Station Hacks 20 | . . . . . 2 . 1 . . . . . 5 . . . . 6 . . . . 6 . . . . . . . . . . Scan Component 12 | . . . . . 1 . 1 . . . . . 3 . . . . 3 . . . . 4 . . . . . . . . . . Repair 8 | . . . . . 1 . . . . . . . 2 . . . . 3 . . . . 2 . . . . . . . . . . Recycling Unit Hacks 9 | . 2 . 2 . 2 . 1 . . . . 1 1 . . . . . . . . . . . . . . . . . . . . Retrieve Components 9 | . 2 . 2 . 2 . 1 . . . . 1 1 . . . . . . . . . . . . . . . . . . . . Scanalyzer 17 | . . . 6 . . . 2 . . . . . . . . . . 7 . . . . . . . . . . 2 . . . . Insert Component 11 | . . . 3 . . . 1 . . . . . . . . . . 5 . . . . . . . . . . 2 . . . . Analyze 6 | . . . 3 . . . 1 . . . . . . . . . . 2 . . . . . . . . . . . . . . . Garrison Access Hacks 5 | . . . . . 1 . . . . . . . . . . 1 . 1 . . . . 1 . . . . . . . 1 . . Unlock Access 3 | . . . . . 1 . . . . . . . . . . 1 . . . . . . . . . . . . . . 1 . . Seal Access 2 | . . . . . . . . . . . . . . . . . . 1 . . . . 1 . . . . . . . . . . Unauthorized Hacks 7 | . 2 . 2 . 1 . . . . . . . . . . . . . . . . . 2 . . . . . . . . . . Terminals 1 | . . . . . . . . . . . . . . . . . . . . . . . 1 . . . . . . . . . . Botnet 1 | . . . . . . . . . . . . . . . . . . . . . . . 1 . . . . . . . . . . Fabricators 1 | . . . . . . . . . . . . . . . . . . . . . . . 1 . . . . . . . . . . Recompile 1 | . . . . . . . . . . . . . . . . . . . . . . . 1 . . . . . . . . . . Repair Stations . | . . . . . . . . . . . . . . . . . . . . . . . . . . . . . . . . . . Recycling Units 5 | . 2 . 2 . 1 . . . . . . . . . . . . . . . . . . . . . . . . . . . . Reject 1 | . . . . . 1 . . . . . . . . . . . . . . . . . . . . . . . . . . . . Tunnel 4 | . 2 . 2 . . . . . . . . . . . . . . . . . . . . . . . . . . . . . . Scanalyzers . | . . . . . . . . . . . . . . . . . . . . . . . . . . . . . . . . . . Garrison Access . | . . . . . . . . . . . . . . . . . . . . . . . . . . . . . . . . . . Data Cores Recovered 2 | . . . 1 . . . . . . . . . . . . . . . . . . . . . . . . 1 . . . . . Used . | . . . . . . . . . . . . . . . . . . . . . . . . . . . . . . . . . . Hacking Detections 79 | . 5 1 10 . 8 1 13 . . . . 5 8 1 . 6 . 6 . . . . 8 . . . . 3 1 1 . 2 . Full Trace Events 7 | . . . . . . . 1 . . . . 1 1 . . 1 . 1 . . . . 2 . . . . . . . . . . Feedback Events 2 | . . . . . . . . . . . . . . . . 1 . . . . . . 1 . . . . . . . . . . Corruption 2 | . . . . . . . . . . . . . . . . 1 . . . . . . 1 . . . . . . . . . . Feedback Blocked . | . . . . . . . . . . . . . . . . . . . . . . . . . . . . . . . . . . Robot Schematics Acquired 10 | . . . . . . . . . . 8 . . . . . . . . . . . . . . . . . . 2 . . . . Robots Built . | . . . . . . . . . . . . . . . . . . . . . . . . . . . . . . . . . . Authchips . | . . . . . . . . . . . . . . . . . . . . . . . . . . . . . . . . . . Time . | . . . . . . . . . . . . . . . . . . . . . . . . . . . . . . . . . . Total Robot Build Rating . | . . . . . . . . . . . . . . . . . . . . . . . . . . . . . . . . . . Part Schematics Acquired 30 | . 1 . 8 . . . 1 . . 10 . . . . . . . 2 . . . . . . . 4 . . 4 . . . . Parts Built 4 | . . . . . . . 2 . . . . . . . . . . 1 . . . . 1 . . . . . . . . . . Authchips 1 | . . . . . . . . . . . . . . . . . . . . . . . 1 . . . . . . . . . . Time 254 | . . . . . . . 84 . . . . . . . . . . 102 . . . . 68 . . . . . . . . . . Total Part Build Rating 24 | . . . . . . . 8 . . . . . . . . . . 8 . . . . 8 . . . . . . . . . . Parts Repaired 8 | . . . . . 1 . . . . . . . 2 . . . . 3 . . . . 2 . . . . . . . . . . Time 756 | . . . . . 44 . . . . . . . 144 . . . . 324 . . . . 244 . . . . . . . . . . Parts Recycled . | . . . . . . . . . . . . . . . . . . . . . . . . . . . . . . . . . . Recycled Matter . | . . . . . . . . . . . . . . . . . . . . . . . . . . . . . . . . . . Retrieved Matter . | . . . . . . . . . . . . . . . . . . . . . . . . . . . . . . . . . . Retrieved Components 56 | . 15 . 18 . 11 . 10 . . . . . 2 . . . . . . . . . . . . . . . . . . . . Parts Scanalyzed 5 | . . . 2 . . . 1 . . . . . . . . . . 2 . . . . . . . . . . . . . . . Part Schematics Acquired 4 | . . . 1 . . . 1 . . . . . . . . . . 2 . . . . . . . . . . . . . . . Parts Damaged . | . . . . . . . . . . . . . . . . . . . . . . . . . . . . . . . . . . Bothacking | -11 -10 -10 -9 -9 -8 -8 -7 -7 -7 -7 -6 -6 -6 -6 -6 -6 -6 -5 -5 -5 -5 -4 -4 -4 -4 -4 -3 -3 -3 -2 -1 -1 -1 ------------ Run | Jun Mat Min Mat Min Mat Gar Fac Low Low Dat Pro Fac Ext Cet Arc Hub Gar Fac Upp Upp War Pro Fac Upp Upp Zhi Pro Res Tes Res Acc Gar Acc Used RIF Installer . | . . . . . . . . . . . . . . . . . . . . . . . . . . . . . . . . . . Robots Hacked . | . . . . . . . . . . . . . . . . . . . . . . . . . . . . . . . . . . Non-combat . | . . . . . . . . . . . . . . . . . . . . . . . . . . . . . . . . . . Combat . | . . . . . . . . . . . . . . . . . . . . . . . . . . . . . . . . . . Robot Hacks Applied . | . . . . . . . . . . . . . . . . . . . . . . . . . . . . . . . . . . Relay Couplers Released 28 | . . . . . . 9 . . . . . . . . . . 3 . . . . . . . . . . . 2 3 . 11 . Machine Destruction 28 | . . . . . . 9 . . . . . . . . . . 3 . . . . . . . . . . . 2 3 . 11 . Fabnet Peak Effective % . | . . . . . . . . . . . . . . . . . . . . . . . . . . . . . . . . . . Robots Rewired 14 | . . . . . . . . . . . . . 8 . . . . . . . 5 . . . 1 . . . . . . . . Allies Hacked 1 | . . . . . . . . . . . . . . . . . . . . . 1 . . . . . . . . . . . . Hacks Repelled . | . . . . . . . . . . . . . . . . . . . . . . . . . . . . . . . . . . Allies | -11 -10 -10 -9 -9 -8 -8 -7 -7 -7 -7 -6 -6 -6 -6 -6 -6 -6 -5 -5 -5 -5 -4 -4 -4 -4 -4 -3 -3 -3 -2 -1 -1 -1 -------- Run | Jun Mat Min Mat Min Mat Gar Fac Low Low Dat Pro Fac Ext Cet Arc Hub Gar Fac Upp Upp War Pro Fac Upp Upp Zhi Pro Res Tes Res Acc Gar Acc Total Allies 36 | . . . . 1 . . . . . . 1 . 21 2 . . . . . . 5 . 3 . 1 . . . . . . 2 . Largest Group 10 | . . . . 1 . . . . . . 1 . 10 7 4 . . . . . 5 . 3 . 1 . . . . . . 2 2 Highest-Rated Group 446 | . . . . 31 . . . . . . 96 . 319 446 294 . . . . . 285 . 138 . 47 . . . . . . 142 142 Highest-Rated Ally 159 | . . . . 31 . . . . . . 96 . 159 159 159 . . . . . 65 . 46 . 47 . . . . . . 80 80 Total Orders 3 | . . . . . . . . . . . . . . . . . . . . . 3 . . . . . . . . . . . . STAY 2 | . . . . . . . . . . . . . . . . . . . . . 2 . . . . . . . . . . . . FOLLOW 1 | . . . . . . . . . . . . . . . . . . . . . 1 . . . . . . . . . . . . Ally Attacks 311 | . . . . . . . . . . . 5 . 118 88 14 . . . . . 22 . 18 . 9 . . . . . . . 37 Total Damage 7554 | . . . . . . . . . . . 133 . 2281 2449 548 . . . . . 659 . 502 . 212 . . . . . . . 770 Kills 49 | . . . . . . . . . . . . . 21 16 2 . . . . . 6 . . . . . . . . . . . 4 Allies Corrupted 1 | . . . . . . . . . . . 1 . . . . . . . . . . . . . . . . . . . . . . Allies Melted 2 | . . . . . . . . . . . . . . . . . . . . . . . . . . . . . . 2 . . . Intel | -11 -10 -10 -9 -9 -8 -8 -7 -7 -7 -7 -6 -6 -6 -6 -6 -6 -6 -5 -5 -5 -5 -4 -4 -4 -4 -4 -3 -3 -3 -2 -1 -1 -1 ------- Run | Jun Mat Min Mat Min Mat Gar Fac Low Low Dat Pro Fac Ext Cet Arc Hub Gar Fac Upp Upp War Pro Fac Upp Upp Zhi Pro Res Tes Res Acc Gar Acc Robot Analysis Total 5 | . . . . . 1 . . . . . . . . . . . . . . . . . . . . 4 . . . . . . . Derelict Logs Recovered 8 | . . . . 1 . . . 1 1 . 2 . . . . . . . . . . 2 . 1 . . . . . . . . . Drone Launches 1 | . . . . . . . . . . . . . . . . 1 . . . . . . . . . . . . . . . . . Drone Recoveries . | . . . . . . . . . . . . . . . . . . . . . . . . . . . . . . . . . . Exploration | -11 -10 -10 -9 -9 -8 -8 -7 -7 -7 -7 -6 -6 -6 -6 -6 -6 -6 -5 -5 -5 -5 -4 -4 -4 -4 -4 -3 -3 -3 -2 -1 -1 -1 ------------- Run | Jun Mat Min Mat Min Mat Gar Fac Low Low Dat Pro Fac Ext Cet Arc Hub Gar Fac Upp Upp War Pro Fac Upp Upp Zhi Pro Res Tes Res Acc Gar Acc Turns Passed 50580 | 201 2820 1797 3611 3217 2442 1458 4108 869 467 140 420 1435 1986 374 939 1628 879 2049 798 1390 1706 1353 2366 1114 712 272 486 892 1475 3877 39 2530 730 Spaces Moved 18893 | 136 1044 524 758 605 786 510 1704 415 271 88 213 604 944 172 221 768 338 724 307 487 718 510 1014 634 376 159 260 387 573 1249 19 1149 226 Core 91 | 7 . . . . . . . . . . . . 7 . . . . . . . . . . . . . . . . . . . 77 Treads 12002 | 2 810 522 549 605 786 510 533 . . . . 1 16 . . 55 338 724 307 487 718 510 1014 634 376 159 260 387 573 1126 . . . Legs 1440 | . . . . . . . . . . . . . . . . . . . . . . . . . . . . . . 123 19 1149 149 Wheels 5360 | 127 234 2 209 . . . 1171 415 271 88 213 603 921 172 221 713 . . . . . . . . . . . . . . . . . Hover . | . . . . . . . . . . . . . . . . . . . . . . . . . . . . . . . . . . Flight . | . . . . . . . . . . . . . . . . . . . . . . . . . . . . . . . . . . Fastest Speed 50 | 50 95 215 215 240 240 240 145 160 160 160 145 160 145 145 160 160 160 158 246 246 166 246 160 160 160 160 160 160 160 177 185 116 50 Average Speed 195 | 92 215 320 236 240 240 240 182 160 160 160 159 160 161 152 174 173 183 160 246 246 191 246 162 160 160 160 160 160 161 240 185 187 142 Slowest Speed 600 | 160 320 480 320 240 240 240 242 160 160 160 160 560 600 175 175 175 330 246 246 246 246 246 246 160 160 160 160 160 245 405 185 190 190 Overloaded Moves . | . . . . . . . . . . . . . . . . . . . . . . . . . . . . . . . . . . Propulsion Burnouts . | . . . . . . . . . . . . . . . . . . . . . . . . . . . . . . . . . . Robots Hopped . | . . . . . . . . . . . . . . . . . . . . . . . . . . . . . . . . . . Cave-ins Triggered 1 | . . . . . . . . . . . . . . . . . . . . . . . . . . . . 1 . . . . . Teleports 1 | . . . . . . . . . . . . . . . . . . . . . . . . . . . . . . 1 . . . Exploration Rate (%) 54 | 6 98 90 44 93 56 64 41 56 47 70 39 17 85 68 89 45 42 24 47 59 86 68 31 64 59 62 51 12 78 45 1 94 11 Regions Visited 33 Branch Regions 19 Pre-discovered Areas 11 | . 2 1 2 . . . . 1 . 1 1 . . . . . . . . . . . . . . 3 . . . . . . . Known Exits Taken 11 | . . . 1 . 1 . 1 . . . . 1 . . . 1 . 1 . . . 1 1 . . . . 1 . 1 1 . . Unknown Exits Taken 19 | 1 1 1 . 1 . . . 1 1 1 1 . 1 1 1 . . . 1 1 1 . . 1 1 1 1 . 1 . . . . Scrap Searched 23 | . . 3 . 2 . . . 2 8 . . . . . . . . . 1 2 . 1 . 2 1 . 1 . . . . . . Spaces Dug 194 | . 2 . . . . 1 5 . . . . 11 20 1 . . 16 30 7 17 12 . 15 8 9 . . 40 . . . . . Terrain Destroyed 1430 | . 2 . 98 . . 4 78 . . . 1 12 120 20 23 20 17 77 11 49 14 28 131 28 65 . 59 73 90 298 . 31 81 Melee 16 | . 2 . . . . 1 4 . . . . 8 . 1 . . . . . . . . . . . . . . . . . . . Projectile 633 | . . . . . . . 2 . . . 1 4 11 . 22 20 1 61 11 29 14 28 104 28 65 . 20 73 31 53 . 16 39 AOE 650 | . . . 98 . . 3 72 . . . . . 109 19 . . 16 14 . 19 . . 27 . . . 39 . 52 164 . . 18 Terrain Rammed . | . . . . . . . . . . . . . . . . . . . . . . . . . . . . . . . . . . Walls Destroyed . | . . . . . . . . . . . . . . . . . . . . . . . . . . . . . . . . . . Machines Disabled . | . . . . . . . . . . . . . . . . . . . . . . . . . . . . . . . . . . Actions | -11 -10 -10 -9 -9 -8 -8 -7 -7 -7 -7 -6 -6 -6 -6 -6 -6 -6 -5 -5 -5 -5 -4 -4 -4 -4 -4 -3 -3 -3 -2 -1 -1 -1 --------- Run | Jun Mat Min Mat Min Mat Gar Fac Low Low Dat Pro Fac Ext Cet Arc Hub Gar Fac Upp Upp War Pro Fac Upp Upp Zhi Pro Res Tes Res Acc Gar Acc Total 28966 | 170 1486 612 2335 2345 1130 671 2374 597 289 87 250 902 1275 253 666 952 490 1414 331 645 1039 568 1462 680 434 179 300 560 956 1684 21 1383 426 Wait 5840 | 2 296 29 1298 1702 139 25 235 156 1 . . 65 107 14 332 111 34 502 6 103 157 24 248 4 13 1 6 51 149 29 . . 1 Move 18861 | 135 1043 523 757 604 786 509 1703 414 270 87 212 603 943 171 220 768 337 723 306 486 717 509 1013 633 375 158 259 385 572 1248 19 1147 226 Hop . | . . . . . . . . . . . . . . . . . . . . . . . . . . . . . . . . . . Pick Up 373 | 8 35 12 35 5 13 16 31 2 2 . . 16 13 11 2 3 14 17 1 3 11 1 19 3 3 4 2 12 23 44 . 8 4 Fast Attach 253 | 6 2 5 5 3 10 1 19 . 1 . . 16 14 6 12 2 14 25 . 4 19 3 8 3 1 4 3 3 22 26 2 14 . Attach 154 | . 1 3 9 . 2 5 13 1 . . 2 8 8 . . 2 7 6 . 3 6 1 9 2 1 4 2 5 10 27 . 8 9 Detach 34 | . . . . 1 . . 2 . . . . 2 . 1 . 1 2 3 . . 6 . . . . 1 1 . 2 5 . 5 2 Swap 301 | . 15 10 46 4 9 14 23 3 . . . 12 14 9 2 3 2 8 . 4 9 1 9 1 4 . 2 1 17 38 . 25 16 Drop 494 | . 23 11 42 11 29 20 42 2 2 . . 24 7 18 14 4 20 28 1 7 33 3 19 3 3 7 4 9 40 41 . 26 1 Fire 2372 | 19 64 14 143 14 136 69 299 19 13 . 36 136 87 18 84 57 59 100 17 35 23 26 135 31 33 . 21 91 121 226 . 98 148 Melee 25 | . 5 . . . . 2 5 . . . . 8 . 5 . . . . . . . . . . . . . . . . . . . Ram 9 | . . . . . . . 2 . . . . 4 2 . . . . . . . . . . . . . . . . . . . 1 Kick 5 | . . . . . . . . . . . . . . . . . . . . . . . . . . . . . . . . . 5 Crush 18 | . 2 1 . 1 6 . . . . . . . . . . 1 1 2 . . . . 2 . . . . 2 . . . . . Escape Stasis 132 | . . . . . . 10 . . . . . 8 48 . . . . . . . . . . . . . . 1 . . . 52 13 Rewire 91 | . . . . . . . . . . . . . 32 . . . . . . . 58 . . . 1 . . . . . . . . Trap 4 | . . 4 . . . . . . . . . . . . . . . . . . . . . . . . . . . . . . . Miscellaneous . | . . . . . . . . . . . . . . . . . . . . . . . . . . . . . . . . . . Route ------- -11/Junkyard -10/Materials (discovered 5 exits: *Mat x3 / *Min x2) -10/Mines (discovered 3 exits: *Mat x2 / [*Exi]) -9/Materials (discovered 2 exits: *Min x2) -9/Mines (discovered 2 exits: *Mat x2) -8/Materials (discovered 4 exits: *Fac x2 / Sto / Gar) -8/Garrison (discovered 3 exits: *Fac x3) -7/Factory (discovered 3 exits: *Fac / *Low x2) -7/Lower Caves -7/Lower Caves (discovered 2 exits: *Fac / *Dat) -7/Data Miner -6/Proximity Caves -6/Factory (discovered 4 exits: Low x2 / *Ext x2) -6/Extension (discovered 2 exits: *Fac / *Cet) -6/Cetus (discovered 2 exits: *Fac / [*Arc]) -6/Archives (discovered 3 exits: *Fac / *Hub x2) -6/Hub_04(d) -6/Garrison -5/Factory (discovered 2 exits: *Upp x2) -5/Upper Caves -5/Upper Caves (discovered 2 exits: *Fac / *War) -5/Warlord -4/Proximity Caves -4/Factory (discovered 3 exits: *Res / *Upp x2) -4/Upper Caves -4/Upper Caves (discovered 2 exits: *Res / *Zhi) -4/Zhirov -3/Proximity Caves -3/Research (discovered 3 exits: Arm / *Tes x2) -3/Testing -2/Research (discovered 2 exits: *Acc x2) -1/Access -1/Garrison (discovered 3 exits: [*Acc x3]) -1/Access History --------- Turn | Location | Event 5 | -11/Junkyard | Discovered new exit (range 15) 202 | -11/Junkyard | Entered Materials 312 | -10/Materials | Build established: Mutant 459 | -10/Materials | Discovered new exit (range 15) 639 | -10/Materials | Discovered new exit (range 16) 1216 | -10/Materials | Discovered new exit (range 5) 1567 | -10/Materials | Discovered new exit (range 11) 1574 | -10/Materials | Discovered new exit (range 16) 3022 | -10/Materials | Entered Mines 3029 | -10/Mines | Received a Rocket Launcher from a helpful Derelict 3063 | -10/Mines | Found the Drone Emporium 3082 | -10/Mines | Found Prototype Device 3207 | -10/Mines | Met a Derelict bent on vengeance 3362 | -10/Mines | A weapon hastily lodged in a ceiling crevice suddenly fell to the ground 3491 | -10/Mines | Deemed a non-threat by the Exiles lab entrance 3491 | -10/Mines | Discovered new exit (range 5) 3699 | -10/Mines | Discovered new exit (range 6) 4011 | -10/Mines | Core integrity fell below 50% 4042 | -10/Mines | Discovered new exit (range 15) 4146 | -10/Mines | Found a hidden stash of uninstalled traps 4533 | -10/Mines | Core integrity fell below 20% 4793 | -10/Mines | Learned location of Storage (-8) 4819 | -10/Mines | Entered Materials 4819 | -9/Materials | Evolved 2 slots: Propulsion x1, Utility x1 4833 | -9/Materials | Identified Bomb Drone Bay 4963 | -9/Materials | Identified exit to Mines 5184 | -9/Materials | Build established: Scavenger-Mutant 6109 | -9/Materials | Build established: Mutant 6419 | -9/Materials | First assault squad dispatched 6564 | -9/Materials | Lost 5 parts (1p1n2u1w) 8102 | -9/Materials | Sterilization system engaged 8102 | -9/Materials | Non-combat units ordered to evacuate 8135 | -9/Materials | Destroyed 9 combat bots 8202 | -9/Materials | Combat units ordered to evacuate 8402 | -9/Materials | Ambient heat levels rising (+10) 8430 | -9/Materials | Entered Mines 8438 | -9/Mines | Build established: Scavenger-Mutant 8730 | -9/Mines | Discovered new exit (range 6) 8736 | -9/Mines | Received a Mining Laser from a helpful Derelict 8775 | -9/Mines | YI-UF0 nonchalantly dropped a Grenade Launcher on the ground 8796 | -9/Mines | Destroyed YI-UF0 8809 | -9/Mines | Found Prototype Storage 8809 | -9/Mines | Identified YI-UF0's Bottomless Matter Pit 9192 | -9/Mines | Learned 8 Materials zone layouts 9474 | -9/Mines | Met a Derelict shopkeep closing up shop 9758 | -9/Mines | Discovered new exit (range 8) 11647 | -9/Mines | Entered Materials 11647 | -8/Materials | Evolved 2 slots: Propulsion x1, Utility x1 11648 | -8/Materials | Identified exit to Factory 12100 | -8/Materials | Build established: Mutant 12125 | -8/Materials | Identified exit to Storage 12681 | -8/Materials | Repaired Hrd. Heavy Armor Plating 13933 | -8/Materials | Garrison activated, responded to threat 14089 | -8/Materials | Identified exit to Garrison 14089 | -8/Materials | Entered Garrison 14134 | -8/Garrison | Triggered checkpoint 14247 | -8/Garrison | Garrison Relay disabled 14349 | -8/Garrison | Build established: Scavenger-Mutant 14409 | -8/Garrison | Triggered checkpoint 14585 | -8/Garrison | Discovered exit to Factory (range 10) 14639 | -8/Garrison | Triggered checkpoint 14677 | -8/Garrison | Garrison Relay disabled 14832 | -8/Garrison | Triggered checkpoint 14954 | -8/Garrison | Triggered checkpoint 15004 | -8/Garrison | Discovered exit to Factory (range 11) 15043 | -8/Garrison | Discovered exit to Factory (range 62) 15043 | -8/Garrison | Discovered exit to Factory (range 12) 15043 | -8/Garrison | Discovered exit to Factory (range 54) 15160 | -8/Garrison | Triggered checkpoint 15326 | -8/Garrison | Spotted B-75 Beast 15384 | -8/Garrison | Destroyed B-75 Beast 15547 | -8/Garrison | Entered Factory 15547 | -7/Factory | Evolved 2 slots: Utility x2 16552 | -7/Factory | Discovered new exit (range 9) 16747 | -7/Factory | First assault squad dispatched 16765 | -7/Factory | Build established: Mutant 16893 | -7/Factory | Lost 3 parts (2n1w) 16901 | -7/Factory | Destroyed 8 combat bots 16997 | -7/Factory | Cargo convoy interrupted 17007 | -7/Factory | Garrison activated, responded to threat 17011 | -7/Factory | Garrison activated, responded to threat 17176 | -7/Factory | Fabricated Arm. Huge Wheel (x2) 17420 | -7/Factory | Identified exit to Lower Caves 19378 | -7/Factory | Core integrity fell below 50% 19418 | -7/Factory | Lost 3 parts (1p1n1u) 19655 | -7/Factory | Entered Lower Caves 19735 | -7/Lower Caves | Met a Warlord Commander 19736 | -7/Lower Caves | Learned location of Warlord (-5) 19753 | -7/Lower Caves | Found Encrypted Comm Array 20228 | -7/Lower Caves | Learned Factory interactive machine intel 20494 | -7/Lower Caves | Discovered new exit (range 4) 20504 | -7/Lower Caves | Attracted the attention of an 0b10 checkpoint 20524 | -7/Lower Caves | Entered another Lower Caves area 20542 | -7/Lower Caves | Discovered new exit (range 9) 20544 | -7/Lower Caves | Learned Factory interactive machine intel 20931 | -7/Lower Caves | Core integrity fell below 20% 20978 | -7/Lower Caves | Discovered new exit (range 4) 20991 | -7/Lower Caves | Entered Data Miner 20991 | -7/Data Miner | Discovered new exit (range 6) 21022 | -7/Data Miner | Met Data Miner 21051 | -7/Data Miner | Learned location of Section 7 (-2) 21051 | -7/Data Miner | Acquired the access code to Warlord's prototype stash 21078 | -7/Data Miner | Received God Mode back door access code from Data Miner 21131 | -7/Data Miner | Entered Proximity Caves 21272 | -6/Proximity Caves | Spotter reported a threat 21295 | -6/Proximity Caves | Spotter reported a threat 21351 | -6/Proximity Caves | Spotter reported a threat 21521 | -6/Proximity Caves | Discovered new exit (range 16) 21529 | -6/Proximity Caves | Learned location of Zion (-6) 21542 | -6/Proximity Caves | Learned location of 1 exit from Proximity Caves 21551 | -6/Proximity Caves | Entered Factory 21551 | -6/Factory | Evolved 2 slots: Power x1, Utility x1 21552 | -6/Factory | Loaded intel: 54 interactive machine locations 21901 | -6/Factory | Search patrols dispatched 22041 | -6/Factory | Identified exit to Lower Caves 22041 | -6/Factory | Identified exit to Extension 22241 | -6/Factory | Build established: Scavenger-Mutant 22593 | -6/Factory | Build established: Mutant 22951 | -6/Factory | First assault squad dispatched 22986 | -6/Factory | Entered Extension 23029 | -6/Extension | Rescued a captive Derelict 23030 | -6/Extension | Rescued a captive Derelict 23081 | -6/Extension | Rescued a captive Derelict 23081 | -6/Extension | Rescued a captive Derelict 23098 | -6/Extension | Rescued a captive Derelict 23099 | -6/Extension | Rescued a captive Derelict 23433 | -6/Extension | Rescued a captive Derelict 23468 | -6/Extension | Rescued a captive Derelict 23468 | -6/Extension | Rescued a captive Derelict 23939 | -6/Extension | Build established: Commander-Mutant 24030 | -6/Extension | Spotted B-75 Beast 24047 | -6/Extension | Allies destroyed B-75 Beast 24054 | -6/Extension | Spotted B-75 Beast 24086 | -6/Extension | Disrupted transfer network 24130 | -6/Extension | Destroyed B-75 Beast 24144 | -6/Extension | Lost 11 parts (2n7u2w) 24322 | -6/Extension | Build established: Mutant 24469 | -6/Extension | Repaired Broken Cold Fusion Reactor 24515 | -6/Extension | Repaired Arm. Huge Wheel 24520 | -6/Extension | Core integrity fell below 50% 24564 | -6/Extension | Rescued A7 24613 | -6/Extension | Rescued a captive Derelict 24613 | -6/Extension | Rescued a captive Derelict 24736 | -6/Extension | Rescued a captive Derelict 24748 | -6/Extension | Incoming investigation squad redirected 24768 | -6/Extension | Energy Cycler disabled 24943 | -6/Extension | Discovered new exit (range 10) 24944 | -6/Extension | Discovered new exit (range 6) 24972 | -6/Extension | Entered Cetus 24972 | -6/Cetus | Accompanied by 7 allies (A7) 24977 | -6/Cetus | Acquired a Cetus Manufacturing Module code from A7 24993 | -6/Cetus | Spotted Cetus Guard 24993 | -6/Cetus | Spotted Cetus Guard 25000 | -6/Cetus | Allies destroyed Cetus Guard 25000 | -6/Cetus | Spotted Cetus Guard 25001 | -6/Cetus | Spotted Cetus Guard 25002 | -6/Cetus | Allies destroyed Cetus Guard 25010 | -6/Cetus | Allies destroyed Cetus Guard 25016 | -6/Cetus | Allies destroyed Cetus Guard 25036 | -6/Cetus | System corruption reached 10% 25098 | -6/Cetus | Started Cetus Manufacturing Module 25123 | -6/Cetus | Manufactured an Enhanced Grunt 25128 | -6/Cetus | Escorted A7 to Cetus Mainframe 25148 | -6/Cetus | Manufactured an Enhanced Grunt 25161 | -6/Cetus | Cetus Manufacturing Module disabled 25187 | -6/Cetus | Discovered new exit (range 16) 25213 | -6/Cetus | Spotted Cetus Guard 25213 | -6/Cetus | Spotted Cetus Guard 25216 | -6/Cetus | Destroyed Cetus Guard 25217 | -6/Cetus | Spotted Cetus Guard 25218 | -6/Cetus | Spotted Cetus Guard 25222 | -6/Cetus | Allies destroyed Cetus Guard 25225 | -6/Cetus | Allies destroyed Cetus Guard 25228 | -6/Cetus | Allies destroyed Cetus Guard 25234 | -6/Cetus | Discovered new exit (range 16) 25242 | -6/Cetus | Met Revision 17 25319 | -6/Cetus | Build established: Scavenger-Mutant 25346 | -6/Cetus | Entered Archives 25346 | -6/Archives | Accompanied by 4 allies (A7) 25351 | -6/Archives | Received a hacking code to weaken MAIN.C 25443 | -6/Archives | Found Prototype Device 25443 | -6/Archives | Identified Exp. Thermal Shield 25483 | -6/Archives | Discovered new exit (range 15) 25521 | -6/Archives | Discovered new exit (range 16) 25601 | -6/Archives | Discovered new exit (range 16) 26285 | -6/Archives | Entered Hub_04(d) 27016 | -6/Hub_04(d) | Garrison activated, responded to threat 27077 | -6/Hub_04(d) | Identified exit to Garrison 27812 | -6/Hub_04(d) | Garrison activated, responded to threat 27856 | -6/Hub_04(d) | Network Hub disabled 27876 | -6/Hub_04(d) | Incoming investigation squad redirected 27913 | -6/Hub_04(d) | Entered Garrison 28158 | -6/Garrison | Triggered checkpoint 28212 | -6/Garrison | Lost 7 parts (2p3u2w) 28394 | -6/Garrison | Discovered new exit (range 10) 28410 | -6/Garrison | Triggered checkpoint 28440 | -6/Garrison | Spotted B-75 Beast 28466 | -6/Garrison | Core integrity fell below 20% 28470 | -6/Garrison | Destroyed B-75 Beast 28578 | -6/Garrison | Found Unknown Launcher 28578 | -6/Garrison | Identified Fusion Bomb Launcher 28604 | -6/Garrison | Found Antimissile System 28724 | -6/Garrison | Garrison Relay disabled 28792 | -6/Garrison | Entered Factory 28792 | -5/Factory | Evolved 2 slots: Propulsion x1, Weapon x1 28793 | -5/Factory | Loaded intel: 52 interactive machine locations 28922 | -5/Factory | Identified exit to Upper Caves 28972 | -5/Factory | Spotted B-75 Beast 29510 | -5/Factory | Repaired Centrium Heavy Treads 29619 | -5/Factory | Repaired Centrium Medium Armor Plating 29659 | -5/Factory | Build established: Scavenger-Tank 29747 | -5/Factory | Repaired Centrium Medium Armor Plating 30307 | -5/Factory | Incoming investigation squad redirected 30392 | -5/Factory | Fabricated Centrium Heavy Treads? 30841 | -5/Factory | Entered Upper Caves 31196 | -5/Upper Caves | Spotted B-75 Beast 31462 | -5/Upper Caves | Destroyed B-75 Beast 31526 | -5/Upper Caves | Discovered new exit (range 13) 31639 | -5/Upper Caves | Entered another Upper Caves area 31770 | -5/Upper Caves | Discovered new exit (range 14) 32613 | -5/Upper Caves | Discovered new exit (range 14) 33029 | -5/Upper Caves | Entered Warlord 33105 | -5/Warlord | System corruption cleaned by Quarantine Array 33342 | -5/Warlord | Received a Watcher feed algorithm from an ecstatic Tinkerer 33369 | -5/Warlord | Build established: Scavenger-Mutant 33775 | -5/Warlord | Met Warlord 33792 | -5/Warlord | Opened Warlord's prototype stash 33800 | -5/Warlord | Warlord's base attacked by MAIN.C 33802 | -5/Warlord | Found Prototype Reactor 33802 | -5/Warlord | Identified Vortex Chain Reactor 33817 | -5/Warlord | Found Prototype Device 33817 | -5/Warlord | Identified Exp. Cloaking Device 33847 | -5/Warlord | Found Prototype Device 33847 | -5/Warlord | Identified Exp. Focal Shield 33856 | -5/Warlord | Found Prototype Processor 33856 | -5/Warlord | Identified Exp. Core Analyzer 33873 | -5/Warlord | Found Prototype Hackware 34150 | -5/Warlord | Warlord forces counterattacked 34153 | -5/Warlord | Spotted Striker 34215 | -5/Warlord | Spotted Striker 34440 | -5/Warlord | Spotted Striker 34475 | -5/Warlord | Warlord base infiltrated, sounded retreat 34541 | -5/Warlord | Build established: Tank 34549 | -5/Warlord | Found Prototype Ballistic Cannon 34549 | -5/Warlord | Identified Hvy. Autocannon 34580 | -5/Warlord | Spotted Striker 34580 | -5/Warlord | Spotted Striker 34700 | -5/Warlord | Discovered new exit (range 15) 34703 | -5/Warlord | Spotted Executioner 34735 | -5/Warlord | Entered Proximity Caves 34736 | -4/Proximity Caves | Identified exit to Factory 34942 | -4/Proximity Caves | Attracted the attention of an 0b10 checkpoint 35096 | -4/Proximity Caves | Learned Research trap positions 35327 | -4/Proximity Caves | Spotted B-86 Titan 35962 | -4/Proximity Caves | Found Alien Artifact 35962 | -4/Proximity Caves | Identified Dimensional Node Initializer 35962 | -4/Proximity Caves | Initialized slip node 35964 | -4/Proximity Caves | Identified Ghost Barrier 36007 | -4/Proximity Caves | Learned Research terminal intel 36088 | -4/Proximity Caves | Entered Factory 36088 | -4/Factory | Evolved 2 slots: Propulsion x1, Utility x1 36136 | -4/Factory | Incoming investigation squad redirected 36252 | -4/Factory | Build established: Hacker-Mutant 36255 | -4/Factory | Allied Derelicts emerged from ambush trap array 36726 | -4/Factory | Repaired Broken Centrium Heavy Treads? 36852 | -4/Factory | Repaired Centrium Medium Armor Plating 36868 | -4/Factory | Incoming investigation squad redirected 36973 | -4/Factory | Discovered new exit (range 8) 37013 | -4/Factory | Build established: Hacker-Tank 37599 | -4/Factory | Identified exit to Upper Caves 37636 | -4/Factory | Spotted B-86 Titan 37805 | -4/Factory | Incoming investigation squad redirected 37838 | -4/Factory | First assault squad dispatched 37852 | -4/Factory | Lost 3 parts (1p2u) 37854 | -4/Factory | Incoming assault squad redirected 37859 | -4/Factory | Incoming assault squad redirected 38058 | -4/Factory | Fabricated Centrium Heavy Treads (x1) 38094 | -4/Factory | Build established: Scavenger-Tank 38363 | -4/Factory | Incoming assault squad redirected 38365 | -4/Factory | Incoming assault squad redirected 38454 | -4/Factory | Entered Upper Caves 38472 | -4/Upper Caves | Learned Research emergency access door positions 38520 | -4/Upper Caves | Ambushed by wild Derelicts 38867 | -4/Upper Caves | Attracted the attention of an 0b10 checkpoint 38930 | -4/Upper Caves | Spotted B-86 Titan 39160 | -4/Upper Caves | Discovered new exit (range 5) 39256 | -4/Upper Caves | Destroyed B-86 Titan 39376 | -4/Upper Caves | Attacked by a delusional Derelict stockpiling parts 39568 | -4/Upper Caves | Entered another Upper Caves area 39569 | -4/Upper Caves | Encountered a Warlord checkpoint 39618 | -4/Upper Caves | Discovered new exit (range 8) 39686 | -4/Upper Caves | Attracted the attention of an 0b10 outpost 40054 | -4/Upper Caves | Acquired the password to a Derelict Tinkerer's latest research 40068 | -4/Upper Caves | Found Prototype Special Weapon 40259 | -4/Upper Caves | Discovered new exit (range 9) 40280 | -4/Upper Caves | Entered Zhirov 40280 | -4/Zhirov | Discovered new exit (range 3) 40311 | -4/Zhirov | Met Zhirov 40341 | -4/Zhirov | Learned location of Quarantine (-2) 40341 | -4/Zhirov | Learned location of Testing (-3) 40341 | -4/Zhirov | Learned location of Command (-1) 40375 | -4/Zhirov | Zhirov requested help retrieving the SGEMP Prototype 40399 | -4/Zhirov | Found Alien Artifact 40399 | -4/Zhirov | Identified Integrated Dissipator 40399 | -4/Zhirov | Installed Integrated Dissipator, increased core heat dissipation (+20) 40421 | -4/Zhirov | Identified Molecular Deconstructor 40470 | -4/Zhirov | Found Alien Artifact 40552 | -4/Zhirov | Entered Proximity Caves 40557 | -3/Proximity Caves | Spotter reported a threat 40995 | -3/Proximity Caves | Discovered new exit (range 5) 41038 | -3/Proximity Caves | Entered Research 41038 | -3/Research | Evolved 2 slots: Power x1, Utility x1 41039 | -3/Research | Loaded intel: 105 trap records 41041 | -3/Research | Loaded intel: 24 terminal locations 41052 | -3/Research | Identified exit to Armory 41052 | -3/Research | Identified exit to Testing 41342 | -3/Research | Destroyed 7 combat bots 41568 | -3/Research | First assault squad dispatched 41592 | -3/Research | Incoming assault squad redirected 41651 | -3/Research | Lost 3 parts (2p1u) 41812 | -3/Research | Found Antimissile System 41851 | -3/Research | Crushed by falling debris 41852 | -3/Research | System corruption reached 10% 41899 | -3/Research | Incoming assault squad redirected 41930 | -3/Research | Entered Testing 41965 | -3/Testing | Found Portable AFG 42118 | -3/Testing | Found Prototype Protection 42118 | -3/Testing | Identified SHELL Armor 42121 | -3/Testing | Found Prototype Protection 42121 | -3/Testing | Identified Med. Regenerative Plating 42126 | -3/Testing | Found Med. Regenerative Plating 42180 | -3/Testing | First assault squad dispatched 42313 | -3/Testing | Destroyed 7 combat bots 42346 | -3/Testing | Build established: Scavenger-Mutant 42685 | -3/Testing | Build established: Scavenger-Tank 42708 | -3/Testing | Found Prototype Ballistic Gun 42708 | -3/Testing | Identified Hyp. Multirail 42926 | -3/Testing | Identified Transdimensional Reconstructor 43133 | -3/Testing | Build established: Scavenger-Gunner 43173 | -3/Testing | Found Prototype Ballistic Cannon 43173 | -3/Testing | Identified Perforator 43249 | -3/Testing | System corruption reached 30% 43280 | -3/Testing | Destroyed 7 combat bots 43285 | -3/Testing | Found Prototype Launcher 43285 | -3/Testing | Identified Hellfire Missile Launcher 43353 | -3/Testing | Discovered new exit (range 8) 43405 | -3/Testing | Entered Research 43405 | -2/Research | Warlord forces began assault on 0b10 43405 | -2/Research | Evolved 2 slots: Utility x2 43515 | -2/Research | Research machine network offline 43750 | -2/Research | Met up with Warlord 43824 | -2/Research | Borebot progress halted 43861 | -2/Research | Borebot progress halted 43907 | -2/Research | Borebot progress halted 43926 | -2/Research | Discovered new exit (range 15) 43957 | -2/Research | P-80 Master assimilated allied PB-QWZ(g) 43982 | -2/Research | Spotted Executioner 43988 | -2/Research | Spotted Executioner 43998 | -2/Research | Destroyed Executioner 44001 | -2/Research | Destroyed Executioner 44029 | -2/Research | Identified exit to Access 44219 | -2/Research | Spotted Executioner 44223 | -2/Research | Spotted Executioner 44246 | -2/Research | Spotted Striker 44330 | -2/Research | Spotted Striker 44333 | -2/Research | Spotted Striker 44382 | -2/Research | Spotted Executioner 44385 | -2/Research | Spotted Striker 44407 | -2/Research | Destroyed Executioner 44473 | -2/Research | Spotted Striker 44498 | -2/Research | Spotted Striker 44975 | -2/Research | Spotted Executioner 44977 | -2/Research | Destroyed Executioner 44978 | -2/Research | Spotted Striker 45007 | -2/Research | Destroyed Striker 45355 | -2/Research | Warlord destroyed during the assault 45372 | -2/Research | Discovered exit to Access (range 13) 45856 | -2/Research | Spotted Executioner 45891 | -2/Research | Spotted Executioner 45902 | -2/Research | Destroyed Executioner 45910 | -2/Research | Destroyed Executioner 45960 | -2/Research | Spotted Striker 45972 | -2/Research | Destroyed Striker 46096 | -2/Research | Spotted Striker 46109 | -2/Research | Destroyed Striker 46153 | -2/Research | Spotted Striker 46281 | -2/Research | Spotted Striker 46283 | -2/Research | Destroyed Striker 46355 | -2/Research | Spotted Striker 46366 | -2/Research | Destroyed Striker 46380 | -2/Research | Spotted Striker 46380 | -2/Research | Destroyed Striker 46395 | -2/Research | Warped through subspace 46424 | -2/Research | Lost 4 parts (2p1n1w) 46711 | -2/Research | Spotted Striker 46735 | -2/Research | Destroyed Striker 46754 | -2/Research | High security lockdown imminent 46834 | -2/Research | High security lockdown engaged 46851 | -2/Research | Spotted Striker 46895 | -2/Research | Destroyed Striker 46930 | -2/Research | Destroyed 11 combat bots 46952 | -2/Research | Spotted Striker 46956 | -2/Research | Destroyed Striker 47061 | -2/Research | Destroyed 12 combat bots 47168 | -2/Research | Destroyed 11 combat bots 47172 | -2/Research | Build established: Scavenger-Mutant 47263 | -2/Research | Destroyed 8 combat bots 47282 | -2/Research | Entered Access 47282 | -1/Access | Evolved 2 slots: Utility x2 47321 | -1/Access | Identified exit to Garrison 47321 | -1/Access | Entered Garrison 47360 | -1/Garrison | Triggered checkpoint 47403 | -1/Garrison | Lost 3 parts (1n2u) 47419 | -1/Garrison | Destroyed 8 combat bots 47618 | -1/Garrison | Garrison Relay disabled 47668 | -1/Garrison | Spotted B-99 Colossus 47673 | -1/Garrison | Triggered checkpoint 47673 | -1/Garrison | Triggered checkpoint 47769 | -1/Garrison | Destroyed B-99 Colossus 47914 | -1/Garrison | Lost 3 parts (1p1u1w) 47927 | -1/Garrison | Destroyed 7 combat bots 48054 | -1/Garrison | Triggered checkpoint 48070 | -1/Garrison | Discovered new exit (range 14) 48276 | -1/Garrison | Found Adv. Powered Armor 48281 | -1/Garrison | Found Adv. Powered Armor 48286 | -1/Garrison | Found Adv. Powered Armor 48420 | -1/Garrison | Discovered new exit (range 10) 48588 | -1/Garrison | Triggered checkpoint 48848 | -1/Garrison | Garrison Relay disabled 48918 | -1/Garrison | Discovered new exit (range 15) 48965 | -1/Garrison | Garrison Relay disabled 49165 | -1/Garrison | Triggered checkpoint 49360 | -1/Garrison | Found Adv. Powered Armor 49363 | -1/Garrison | Found Adv. Powered Armor 49368 | -1/Garrison | Found Adv. Powered Armor 49373 | -1/Garrison | Found Adv. Powered Armor 49380 | -1/Garrison | Found Adv. Powered Armor 49476 | -1/Garrison | Found embedded Infiltrators 49684 | -1/Garrison | Attempted to access garrison exit controls, blocked by remote lockdown 49851 | -1/Garrison | Entered Access 49851 | -1/Access | Accompanied by 2 allies 49971 | -1/Access | High security lockdown imminent 50026 | -1/Access | Destroyed 8 combat bots 50043 | -1/Access | Energy Cycler disabled 50051 | -1/Access | High security lockdown engaged 50143 | -1/Access | System corruption reached 10% 50195 | -1/Access | Spotted Striker 50195 | -1/Access | Spotted Striker 50195 | -1/Access | Spotted Striker 50208 | -1/Access | Destroyed Striker 50214 | -1/Access | Destroyed Striker 50214 | -1/Access | Destroyed Striker 50240 | -1/Access | Spotted Investigator 50243 | -1/Access | Scanned by Researcher 50248 | -1/Access | Destroyed Investigator 50394 | -1/Access | Destroyed 56 combat bots 50412 | -1/Access | Spotted Executioner 50412 | -1/Access | Spotted Striker 50420 | -1/Access | Destroyed Striker 50477 | -1/Access | Destroyed Executioner 50541 | -1/Access | Destroyed 25 combat bots 50541 | -1/Access | Released all parts (9) 50547 | -1/Access | Core integrity fell below 50% 50572 | -1/Access | Lost 26 parts (2p3n15u5w) 50578 | -1/Access | Core integrity fell below 20% 50578 | -1/Access | Spotted Executioner 50581 | -1/Access | Destroyed by G-73 Enforcer with Heavy Laser Last Messages --------------- 50551_ U-05 Engineer builds a Wall. 50556_ R-10 Processor inserts Unknown Hover Unit into recycling unit. 50568_ R-10 Processor inserts Unknown Energy Gun into recycling unit. 50573_ Penetrated by Slug. 50574_ System corrupted: Matter fused (-6). 50574_ Penetrated by Slug. 50574_ Slug penetrates Wall. 50575_ C-30 ARC bursts open, deploying its payload. 50575_ G-73 Enforcer unfolds itself. 50575_ B-74 Champion unfolds itself. 50575_ I-47 Archangel unfolds itself. 50577_ Penetrated by Slug. 50577_ C-30 ARC bursts open, deploying its payload. 50577_ P-80 Master unfolds itself. 50577_ Executioner unfolds itself. 50577_ E-15 Imp unfolds itself. 50579_ Slammed into B-74 Champion. 50580_ Slug penetrates Wall. 50580_ Penetrated by Slug. 50580_ Slug penetrates Wall. Map ----- +----------------------------------------------------+ | % %=%%=!%%#=%#?###! ###?????????????????????? | | % % =*==%!%*#![###%!!#% ##????????????????????? | | ! [= ######%%%%####????????????????????? | | |!!|!|!%%[%%[%%[!%%/%!%%%%%%?????????????? | | # ##########%*%%########???????????????????? | | # % ###?#%%/%=%%%%%%%= #???????????????????? | | # #???# =!!%%]=*!*% #???????????????????? | | # % #???# !%!%%%[%|/ #???????????????????? | | # #???# [!%=== #???????????????????? | | # #???# ![ !#???????????????????? | | + #???# #???????????????????? | | ####+####???# % ##??????????????????? | | ????????????# ##??????????????????? | | ????????????# R # #?????????????????? | | ????????????#########/#########"#????????????????? | | ????????????????# ?????????????? | | ????????????????# ?????????????? | | ????????????????# ?????????????? | | ????????????????# ??????????????? | | ????????????????# p ??????????????? | | ????????????????# %p #####+###??????????????? | | ????????????????# g #??????????????????????? | | ????????????????# #??????????????????????? | | ????????????????# E% #??????????????????????? | | ????????######### #??????????????????????? | | ????????# # hg @#??????????????????????? | | ????????# # ig#??????????????????????? | | ????????# # Rgg bbb#??????????????????????? | | ????????# # h eb #??????????????????????? | | ????????# ?# g #??????????????????????? | | ??#######+##+#### g l #??????????????????????? | | ??# #??????????????????????? | | ??# ####+##### ####???????????????????? | | ??# # # """#???????????????????? | | ??# + # """"" """#???????????????????? | | ??#+## ! #! ""Y"" A R"#???????????????????? | | ? # # """#???????????????????? | | # # "" #???????????????????? | | # # ####???????????????????? | | ! # # ! #??????????????????????? | | ]# + #??????????????????????? | | # #######+#####??????????????????????? | | ###############???? ?????????????????????????? | | ????????????????? ???????????????????????? | | ??????????????? """""?????????????????????? | | ??????????????# """""#????????????????????? | | ??????????????# """""#????????????????????? | | ??????????????# """""#????????????????????? | | ??????????????# ""????????????????????????? | | ??????????????# ????????????????????????? | +----------------------------------------------------+ Best States ------------- Heat Dissipation 129 Coolant Potential 320 Energy Generation 72 Energy Capacity 800 Matter Stores 600 Matter Capacity 1800 Sight Range 16 Robot Scan Range 15 Terrain Scan Density 10 Jamming Range 16 Power Amplification 30 Additional Mass Support 9 Armor Coverage 2700 Resistance: KI 30 Resistance: TH 10 Resistance: EX 50 Power Shielding 90 Propulsion Shielding 33 Point Defense Rating 240 Weapon Cycling 20 Evasion (%) 55 Targeting Accuracy 8 Target Analysis 8 Core Analysis 8 Armor Integrity Analysis 30 Recoil Reduction 6 Salvage Targeting 4 Offensive Hacking 14 Defensive Hacking 20 Authchip Count 1 Item Schematics ----------------- Cargo Storage Unit | -10/Materials | Hacked Med. Storage Unit | -9/Materials | Hacked Hcp. Storage Unit | -9/Materials | Hacked Huge Storage Unit | -9/Materials | Hacked Transport Network Coupler | -9/Materials | Hacked Imp. Targeting Computer | -9/Materials | Hacked Structural Scanner | -9/Materials | Hacked Med. Armor Plating | -9/Materials | Scanalyzed Lrg. Storage Unit | -9/Materials | Hacked Hrd. Heavy Armor Plating | -7/Factory | Scanalyzed Lgt. Regenerative Plating | -7/Data Miner | Free Combat Drone Bay | -7/Data Miner | Free Biomechanical Wings | -7/Data Miner | Free Exp. Weapon Shielding | -7/Data Miner | Free Imp. Lightning Gun | -7/Data Miner | Free Linear Gravjet | -7/Data Miner | Free Imp. Corruption Screen | -7/Data Miner | Free KE Penetrator | -7/Data Miner | Free Adv. Plasma Cannon | -7/Data Miner | Free Railgun | -7/Data Miner | Free Centrium Heavy Treads | -5/Factory | Scanalyzed Centrium Medium Armor Plating | -5/Factory | Scanalyzed Assault Drone Bay | -4/Zhirov | Free Exp. Heat Sink | -4/Zhirov | Free Exp. Optical Array | -4/Zhirov | Free Imp. Arc Thrower | -4/Zhirov | Free Exp. Focal Shield | -3/Testing | Archive Adv. KE Penetrator | -3/Testing | Archive Diametric Drive | -3/Testing | Archive Hvy. Wave Gun | -3/Testing | Archive Robot Schematics ------------------ M-28 Smith | -7/Data Miner | Free B-48 Gladiator | -7/Data Miner | Free H-66 Slayer | -7/Data Miner | Free W-25 Informer | -7/Data Miner | Free A-15 Conveyor | -7/Data Miner | Free Y-54 Guardian | -7/Data Miner | Free M-22 Extractor | -7/Data Miner | Free G-50 Soldier | -7/Data Miner | Free M-36 Artificer | -3/Testing | Archive A-27 Freighter | -3/Testing | Archive Fabricated ------------ Arm. Huge Wheel | x2 | -7/Factory | Preloaded Centrium Heavy Treads | x1 | -5/Factory Centrium Heavy Treads | x1 | -4/Factory | Authchip Alien Tech Used ----------------- Dimensional Node Initializer Integrated Dissipator Transdimensional Reconstructor Achievements -------------- None Challenges ------------ None Game ------ Seed NetworkEnhancedMatrix Manual? 0 Play Time 06:58:41 Cumulative 504.6 hours Start 2023.03.30 @ 15:10:35 End 2023.04.01 @ 01:41:17 Sessions 14 Manual Loads 0 Difficulty Rogue Special Mode None Game No. 362 Rogue 362 Adventurer 0 Explorer 0 Win Type - Total 15 Types 8/3/1/0/0/1/2/0/0 Lore% 80 Gallery% 91 Achievement% 78 Wizard Run 0 Options --------- ASCII 0 Keyboard 0 Movement Numpad Keybinds 0 Fullscreen 2 Font 24/Terminus Map View 76x50 Tactical HUD 1 Map Filters NONE Filters NONE Steam 1 RUN: b14c6a3a-f958-4b85-8b0c-799777694bec